Workbook

Sheet 振り子
A1: 剛体円盤を糸で吊った振り子
A2: Iθ''＝－mgLpsinθ | N2: マクロで計算 ➡ | P2: =exe("ルンゲ･クッタ･ギル法による数値積分","RigidPendulum",$C$9:$C$21,M8:R8) -> ルンゲ･クッタ･ギル法による数値積分
A3: I＝mLp^2 | N3: マクロは標準モジュール-Module6 の中。 実行させるには =exe(･･･ と先頭に＝を付加する。
A4: Lp＝√{L^2－r^2sin^2(φ－θ)}＋rcos(φ－θ) | H4: 解析解 | O4: 数値解析 | U4: 変位量に変換 | AC4: 解析解との差
A5: Jφ''＝－Trsinφ | E5: 時間 | F5: 加速度 | G5: 速度 | H5: 変位 | I5: 加速度 | J5: 速度 | K5: 変位 | M5: 加速度 | N5: 速度 | O5: 変位 | P5: 加速度 | Q5: 速度 | R5: 変位 | S5: 加速度 | T5: 速度 | U5: 変位 | V5: 加速度 | W5: 速度 | X5: 変位 | Y5: 変位 | AA5: 加速度 | AB5: 速度 | AC5: 変位差 | AD5: 加速度 | AE5: 速度 | AF5: 変位差
A6: J＝(3/2)mr^2 | E6: t | F6: x'' | G6: x' | H6: x | I6: z'' | J6: z' | K6: z | M6: θ'' | N6: θ' | O6: θ | P6: φ'' | Q6: φ' | R6: φ | S6: x'' | T6: x' | U6: x | V6: z'' | W6: z' | X6: z | Y6: x+z | AA6: x'' | AB6: x' | AC6: x | AD6: z'' | AE6: z' | AF6: z
A7: T＝mgcosθ＋mLpθ'^2 | E7: [s] | F7: [m/s^2] | G7: [m/s] | H7: [m] | I7: [m/s^2] | J7: [m/s] | K7: [m] | M7: [rad/s^2] | N7: [rad/s] | O7: [rad] | P7: [rad/s^2] | Q7: [rad/s] | R7: [rad] | S7: [m/s^2] | T7: [m/s] | U7: [m] | V7: [m/s^2] | W7: [m/s] | X7: [m] | Y7: [m] | AA7: [m/s^2] | AB7: [m/s] | AC7: [m] | AD7: [m/s^2] | AE7: [m/s] | AF7: [m]
E8: 0 | F8: =-$C$27*$C$26^2*COS($C$26*$E8+$C$28) -> -1.710422667 | G8: =-$C$27*$C$26*SIN($C$26*$E8+$C$28) -> 0 | H8: =$C$27*COS($C$26*$E8+$C$28) -> 0.1832595715 | I8: =-$C$37*$C$36^2*COS($C$36*$E8+$C$38) -> 1.140281778 | J8: =-$C$37*$C$36*SIN($C$36*$E8+$C$38) -> -1.222133067e-17 | K8: =$C$37*COS($C$36*$E8+$C$38) -> -0.00872664626 | M8: -1.62561112 | N8: 0 | O8: 0.1745329252 | P8: 22.34531603 | Q8: 0 | R8: -0.1745329252 | S8: =($C$14+$C$13)*M8 -> -1.706891676 | T8: 0 | U8: 0.1832595715 | V8: =$C$13*P8 -> 1.117265802 | W8: 0 | X8: -0.00872664626 | Y8: =U8+X8 -> 0.1745329252 | AA8: =S8-F8 -> 0.003530990651 | AB8: 0 | AC8: 0 | AD8: -0.02301597644 | AE8: 1.222133067e-17 | AF8: 0
A9: 時間間隔 | B9: Δt | C9: =2*PI()/C26/1000 -> 0.002056655163 | D9: [s] | E9: =E8+$C$9 -> 0.002056655163 | F9: -1.710388905 | G9: -0.003517726462 | H9: 0.1832559541 | I9: =-$C$37*$C$36^2*COS($C$36*$E9+$C$38) -> 1.139966677 | J9: =-$C$37*$C$36*SIN($C$36*$E9+$C$38) -> 0.002344950383 | K9: =$C$37*COS($C$36*$E9+$C$38) -> -0.008724234772 | M9: -1.625578015 | N9: -0.003343298807 | O9: 0.1745294872 | P9: 22.339368 | Q9: 0.04595253171 | R9: -0.1744856688 | S9: -1.706856916 | T9: -0.003510463748 | U9: 0.1832559615 | V9: 1.1169684 | W9: 0.002297626586 | X9: -0.008724283442 | Y9: =U9+X9 -> 0.1745316781 | AA9: 0.003531989134 | AB9: 7.262714783e-06 | AC9: 7.468097918e-09 | AD9: -0.02299827702 | AE9: -4.732379761e-05 | AF9: -4.867060143e-08
A10: 終了時間 | B10: TL | C10: =C9*1000 -> 2.056655163 | D10: [s] | E10: =E9+$C$9 -> 0.004113310325 | F10: -1.710287619 | G10: -0.007035314051 | H10: 0.1832451021 | I10: 1.139021548 | J10: 0.004688604777 | K10: -0.00871700164 | M10: -1.625478702 | N10: -0.006686461444 | O10: 0.1745191733 | P10: 22.32152665 | Q10: 0.0918805992 | R10: -0.1743439249 | S10: -1.706752637 | T10: -0.007020784516 | U10: 0.1832451319 | V10: 1.116076332 | W10: 0.00459402996 | X10: -0.008717196247 | Y10: =U10+X10 -> 0.1745279357 | AA10: 0.003534982352 | AB10: 1.452953511e-05 | AC10: 2.987661454e-08 | AD10: -0.0229452153 | AE10: -9.457481706e-05 | AF10: -1.946075719e-07
A11: 重力加速度 | B11: g | C11: 9.8 | D11: [m/s^2] | E11: 0.006169965488 | F11: -1.710118814 | G11: -0.0105526239 | H11: 0.1832270158 | I11: 1.137446913 | J11: 0.007029667909 | K11: -0.008704950862 | M11: -1.625313191 | N11: -0.01002935175 | O11: 0.1745019839 | P11: 22.29180024 | Q11: 0.1377597496 | R11: -0.174107769 | S11: -1.706578851 | T11: -0.01053081934 | U11: 0.1832270831 | V11: 1.114590012 | W11: 0.006887987478 | X11: -0.008705388448 | Y11: 0.1745216946 | AA11: 0.003539963618 | AB11: 2.180455734e-05 | AC11: 6.723820836e-08 | AD11: -0.02285690079 | AE11: -0.0001416804304 | AF11: -4.375865078e-07
A12: 質量 | B12: m | C12: 10 | D12: [kg] | E12: 0.00822662065 | F12: -1.709882497 | G12: -0.01406951714 | H12: 0.1832016961 | I12: 1.135243642 | J12: 0.009366845937 | K12: -0.008688089098 | M12: -1.6250815 | N12: -0.0133718336 | O12: 0.1744779197 | P12: 22.25020253 | Q12: 0.1835655525 | R12: -0.1737773266 | S12: -1.706335575 | T12: -0.01404042528 | U12: 0.1832018157 | V12: 1.112510126 | W12: 0.009178277627 | X12: -0.008688866332 | Y12: 0.1745129494 | AA12: 0.0035469218 | AB12: 2.909185952e-05 | AC12: 1.195739453e-07 | AD12: -0.02273351563 | AE12: -0.0001885683098 | AF12: -7.772339181e-07
A13: 半径 | B13: r | C13: 0.05 | D13: [m] | E13: 0.01028327581 | F13: -1.709578677 | G13: -0.01758585495 | H13: 0.1831691439 | I13: 1.132412954 | J13: 0.01169884717 | K13: -0.008666425667 | M13: -1.624783653 | N13: -0.01671377091 | O13: 0.1744469817 | P13: 22.19675279 | Q13: 0.2292736118 | R13: -0.1733527739 | S13: -1.706022835 | T13: -0.01754945946 | U13: 0.1831693308 | V13: 1.10983764 | W13: 0.01146368059 | X13: -0.008667638695 | Y13: 0.1745016921 | AA13: 0.003555841346 | AB13: 3.639549225e-05 | AC13: 1.869132518e-07 | AD13: -0.02257531406 | AE13: -0.000235166576 | AF13: -1.213027994e-06
A14: 糸の長さ | B14: L | C14: 1 | D14: [m] | E14: 0.01233993098 | F14: -1.709207365 | G14: -0.0211014985 | H14: 0.1831293605 | I14: 1.128956412 | J14: 0.01402438277 | K14: -0.008639972541 | M14: -1.624419679 | N14: -0.02005502765 | O14: 0.1744091713 | P14: 22.13147581 | Q14: 0.2748595765 | R14: -0.1728343368 | S14: -1.705640663 | T14: -0.02105777903 | U14: 0.1831296298 | V14: 1.106573791 | W14: 0.01374297882 | X14: -0.008641716841 | Y14: 0.174487913 | AA14: 0.003566702313 | AB14: 4.371946962e-05 | AC14: 2.692938491e-07 | AD14: -0.02238262156 | AE14: -0.0002814039463 | AF14: -1.744299684e-06
A15: 慣性モーメント | B15: I | C15: =$C$12*($C$14+$C$13)^2 -> 11.025 | D15: [kgm^2] | E15: 0.01439658614 | F15: -1.708768577 | G15: -0.02461630899 | H15: 0.1830823475 | I15: 1.124875927 | J15: 0.01634216748 | K15: -0.008608744342 | M15: -1.623989615 | N15: -0.02339546784 | O15: 0.1743644898 | P15: 22.05440187 | Q15: 0.320299152 | R15: -0.1722222915 | S15: -1.705189096 | T15: -0.02456524123 | U15: 0.1830827142 | V15: 1.102720093 | W15: 0.0160149576 | X15: -0.008611114576 | Y15: 0.1744715997 | AA15: 0.00357948041 | AB15: 5.106776023e-05 | AC15: 3.667616686e-07 | AD15: -0.02215583394 | AE15: -0.0003272098798 | AF15: -2.370234072e-06
A16: 慣性モーメント | B16: J | C16: =(3/2)*$C$12*$C$13^2 -> 0.0375 | D16: [kgm^2] | E16: 0.0164532413 | F16: -1.708262329 | G16: -0.02813014768 | H16: 0.1830281067 | I16: 1.120173755 | J16: 0.01865092033 | K16: -0.008572758327 | M16: -1.623493507 | N16: -0.02673495562 | O16: 0.1743129391 | P16: 21.96556677 | Q16: 0.3655681122 | R16: -0.171516964 | S16: -1.704668182 | T16: -0.0280717034 | U16: 0.183028586 | V16: 1.098278339 | W16: 0.01827840561 | X16: -0.008575848199 | Y16: 0.1744527378 | AA16: 0.003594147044 | AB16: 5.844427828e-05 | AC16: 4.793707494e-07 | AD16: -0.02189541606 | AE16: -0.0003725147209 | AF16: -3.089872048e-06
A17: 初期角 | B17: θ0 | C17: =RADIANS(10) -> 0.1745329252 | D17: [rad] | E17: 0.01850989646 | F17: -1.707688642 | G17: -0.03164287584 | H17: 0.1829666402 | I17: 1.114852493 | J17: 0.02094936533 | K17: -0.008532034386 | M17: -1.622931403 | N17: -0.0300733552 | O17: 0.1742545213 | P17: 21.86501185 | Q17: 0.4106423097 | R17: -0.17071873 | S17: -1.704077973 | T17: -0.03157702296 | U17: 0.1829672474 | V17: 1.093250593 | W17: 0.02053211549 | X17: -0.008535936498 | Y17: 0.1744313109 | AA17: 0.003610669378 | AB17: 6.585287479e-05 | AC17: 6.071831173e-07 | AD17: -0.02160190041 | AE17: -0.00041724984 | AF17: -3.902112276e-06
A18: 初期角速度 | B18: θ'0 | C18: =RADIANS(0) -> 0 | D18: [rad/s] | E18: 0.02056655163 | F18: -1.707047539 | G18: -0.03515435478 | H18: 0.1828979506 | I18: 1.108915083 | J18: 0.02323623219 | K18: -0.008486595024 | M18: -1.62230336 | N18: -0.03341053091 | O18: 0.1741892389 | P18: 21.75278395 | Q18: 0.4554976884 | R18: -0.1698280147 | S18: -1.703418528 | T18: -0.03508105746 | U18: 0.1828987008 | V18: 1.087639198 | W18: 0.02277488442 | X18: -0.008491400737 | Y18: 0.1744073001 | AA18: 0.003629010398 | AB18: 7.329732894e-05 | AC18: 7.50268646e-07 | AD18: -0.02127588553 | AE18: -0.0004613477705 | AF18: -4.805713446e-06
A19: 初期角 | B19: φ0 | C19: =RADIANS(-10) -> -0.1745329252 | D19: [rad] | E19: 0.02262320679 | F19: -1.706339044 | G19: -0.0386644459 | H19: 0.1828220404 | I19: 1.102364806 | J19: 0.02551025703 | K19: -0.008436465356 | M19: -1.621609443 | N19: -0.0367463472 | O19: 0.1741170944 | P19: 21.62893545 | Q19: 0.5001102937 | R19: -0.1688452931 | S19: -1.702689915 | T19: -0.03858366456 | U19: 0.1828229491 | V19: 1.081446772 | W19: 0.02500551469 | X19: -0.008442264653 | Y19: 0.1743806845 | AA19: 0.003649128987 | AB19: 8.078133957e-05 | AC19: 9.087049004e-07 | AD19: -0.02091803412 | AE19: -0.0005047423434 | AF19: -5.799296803e-06
A20: 初期角速度 | B20: φ'0 | C20: =RADIANS(0) -> 0 | D20: [rad/s] | E20: 0.02467986195 | F20: -1.705563186 | G20: -0.04217301061 | H20: 0.1827389127 | I20: 1.095205283 | J20: 0.02777018305 | K20: -0.008381673086 | M20: -1.62084972 | N20: -0.04008066866 | O20: 0.1740380908 | P20: 21.49352424 | Q20: 0.5444562847 | R20: -0.1677710887 | S20: -1.701892206 | T20: -0.04208470209 | U20: 0.1827399953 | V20: 1.074676212 | W20: 0.02722281424 | X20: -0.008388554435 | Y20: 0.1743514409 | AA20: 0.003670980007 | AB20: 8.830851678e-05 | AC20: 1.082576963e-06 | AD20: -0.02052907104 | AE20: -0.0005473688169 | AF20: -6.881348952e-06
C21: =RADIANS(0) -> 0 | E21: 0.02673651711 | F21: -1.704719995 | G21: -0.0456799104 | H21: 0.1826485709 | I21: 1.08744047 | J21: 0.03001476126 | K21: -0.008322248497 | M21: -1.620024267 | N21: -0.04341336003 | O21: 0.1739522313 | P21: 21.34661378 | Q21: 0.5885119452 | R21: -0.1666059744 | S21: -1.70102548 | T21: -0.04558402803 | U21: 0.1826498428 | V21: 1.067330689 | W21: 0.02942559726 | X21: -0.008330298722 | Y21: 0.1743195441 | AA21: 0.003694514391 | AB21: 9.588237379e-05 | AC21: 1.271977242e-06 | AD21: -0.02010978114 | AE21: -0.0005891640021 | AF21: -8.050224923e-06
A22: 質点振り子の解析解(微小振動） | E22: 0.02879317228 | F22: -1.703809504 | G22: -0.04918500683 | H22: 0.1825510183 | I22: 1.079074659 | J22: 0.03224275114 | K22: -0.008258224431 | M22: -1.619133167 | N22: -0.0467442862 | O22: 0.1738595194 | P22: 21.18827304 | Q22: 0.6322536952 | R22: -0.1653505716 | S22: -1.700089825 | T22: -0.04908150051 | U22: 0.1825524953 | V22: 1.059413652 | W22: 0.03161268476 | X22: -0.008267528582 | Y22: 0.1742849668 | AA22: 0.003719679243 | AB22: 0.000103506319 | AC22: 1.477005265e-06 | AD22: -0.01966100685 | AE22: -0.0006300663836 | AF22: -9.304151486e-06
A23: x＝Acos(ωpt＋α) | D23: [m] | E23: 0.03084982744 | F23: -1.702831751 | G23: -0.05268816152 | H23: 0.182446259 | I23: 1.070112473 | J23: 0.03445292135 | K23: -0.008189636272 | M23: -1.618176507 | N23: -0.05007331225 | O23: 0.1737599588 | P23: 21.01857655 | Q23: 0.6756581022 | R23: -0.1640055501 | S23: -1.699085333 | T23: -0.05257697787 | U23: 0.1824479568 | V23: 1.050928827 | W23: 0.03378290511 | X23: -0.008200277503 | Y23: 0.1742476793 | AA23: 0.003746417941 | AB23: 0.000111183648 | AC23: 1.697767457e-06 | AD23: -0.01918364564 | AE23: -0.0006700162361 | AF23: -1.064123072e-05
A24: x'＝-Aωpsin(ωpt＋α) | D24: [m/s] | E24: 0.0329064826 | F24: -1.701786772 | G24: -0.05618923616 | H24: 0.182334297 | I24: 1.060558865 | J24: 0.03664405037 | K24: -0.008116521928 | M24: -1.617154383 | N24: -0.05340030345 | O24: 0.1736535537 | P24: 20.83760436 | Q24: 0.7187018927 | R24: -0.1625716274 | S24: =($C$14+$C$13)*M24 -> -1.698012102 | T24: -0.05607031863 | U24: 0.1823362314 | V24: =$C$13*P24 -> 1.041880218 | W24: 0.03593509464 | X24: -0.008128581372 | Y24: 0.17420765 | AA24: =S24-F24 -> 0.003774670253 | AB24: 0.0001189175364 | AC24: 1.934376895e-06 | AD24: -0.01867864737 | AE24: -0.000708955734 | AF24: -1.20594438e-05
A25: x''＝-Aωp^2cos(ωpt＋α) | D25: [m/s^2] | E25: 0.03496313776 | F25: -1.70067461 | G25: -0.05968809256 | H25: 0.1822151367 | I25: 1.050419116 | J25: 0.03881492724 | K25: -0.008038921806 | M25: -1.616066893 | N25: -0.05672512526 | O25: 0.1735403083 | P25: 20.64544209 | Q25: 0.7613619636 | R25: -0.1610495692 | S25: -1.696870237 | T25: -0.05956138153 | U25: 0.1822173237 | V25: 1.032272105 | W25: 0.03806809818 | X25: -0.008052478461 | Y25: 0.1741648452 | AA25: 0.003804372459 | AB25: 0.0001267110323 | AC25: 2.186953059e-06 | AD25: -0.01814701138 | AE25: -0.000746829057 | AF25: -1.355665502e-05
A26: ωp＝√{g/(L＋r)} | C26: =SQRT($C$11/($C$14+$C$13)) -> 3.055050463 | D26: [rad/s] | E26: 0.03701979293 | F26: -1.699495308 | G26: -0.06318459257 | H26: 0.182088783 | I26: 1.039698829 | J26: 0.04096435217 | K26: -0.007956878794 | M26: -1.614914143 | N26: -0.06004764335 | O26: 0.1734202272 | P26: 20.44218091 | Q26: 0.8036153936 | R26: -0.1594401882 | S26: -1.69565985 | T26: -0.06305002552 | U26: 0.1820912386 | V26: 1.022109045 | W26: 0.04018076968 | X26: -0.00797200941 | Y26: 0.1741192292 | AA26: 0.00383545748 | AB26: 0.0001345670491 | AC26: 2.455621562e-06 | AD26: -0.01758978358 | AE26: -0.0007835824881 | AF26: -1.513061603e-05
A27: A＝x0/√[1＋{x'0/(x0ωp)}^2] | C27: =ABS($C$29/SQRT(1+($C$30/($C$29*$C$26))^2)) -> 0.1832595715 | D27: [m] | E27: 0.03907644809 | F27: -1.698248912 | G27: -0.06667859816 | H27: 0.1819552406 | I27: 1.028403929 | J27: 0.04309113723 | K27: -0.007870438234 | M27: -1.613696245 | N27: -0.06336772362 | O27: 0.1732933154 | P27: 20.22791752 | Q27: 0.8454394545 | R27: -0.1577443441 | S27: -1.694381057 | T27: -0.0665361098 | U27: 0.1819579811 | V27: 1.011395876 | W27: 0.04227197273 | X27: -0.007887217204 | Y27: 0.1740707639 | AA27: 0.003867855013 | AB27: 0.0001424883592 | AC27: 2.740513862e-06 | AD27: -0.01700805334 | AE27: -0.000819164507 | AF27: -1.677897022e-05
A28: α＝tan^-1{－x'0/(x0ωp)} | C28: =IF($C$26*$C$29=0,IF($C$30=0,0,10^100),ATAN2($C$26*$C$29,-$C$30)) -> 0 | D28: [rad] | E28: 0.04113310325 | F28: -1.696935473 | G28: -0.07016997139 | H28: 0.181814515 | I28: 1.016540659 | J28: 0.04519410702 | K28: -0.007779647901 | M28: -1.612413316 | N28: -0.0666852322 | O28: 0.1731595779 | P28: 20.00275418 | Q28: 0.8868116228 | R28: -0.1559629432 | S28: -1.693033982 | T28: -0.07001949381 | U28: 0.1818175568 | V28: 1.000137709 | W28: 0.04434058114 | X28: -0.007798147158 | Y28: 0.1740194096 | AA28: 0.003901491669 | AB28: 0.0001504775868 | AC28: 3.041766971e-06 | AD28: -0.01640295028 | AE28: -0.0008535258755 | AF28: -1.849925737e-05
A29: 初期変位 | B29: x0 | C29: =($C$14+$C$13)*$C$17 -> 0.1832595715 | D29: [m] | E29: 0.04318975841 | F29: -1.695555042 | G29: -0.07365857444 | H29: 0.1816666117 | I29: 1.004115575 | J29: 0.04727209926 | K29: -0.007684557971 | M29: -1.611065477 | N29: -0.07000003546 | O29: 0.1730190202 | P29: 19.76679868 | Q29: 0.9277095909 | R29: -0.1540969378 | S29: -1.691618751 | T29: -0.07350003723 | U29: 0.1816699712 | V29: 0.9883399339 | W29: 0.04638547955 | X29: -0.007704846889 | Y29: 0.1739651243 | AA29: 0.003936291128 | AB29: 0.0001585372025 | AC29: 3.359523138e-06 | AD29: -0.01577564097 | AE29: -0.0008866197174 | AF29: -2.028891841e-05
A30: 初期速度 | B30: x'0 | C30: =($C$14+$C$13)*$C$18 -> 0 | D30: [m/s] | E30: 0.04524641358 | F30: -1.694107673 | G30: -0.07714426956 | H30: 0.1815115364 | I30: 0.9911355437 | J30: 0.04932396553 | K30: -0.007585220998 | M30: -1.609652856 | N30: -0.07331200005 | O30: 0.172871648 | P30: 19.52016436 | Q30: 0.9681112787 | R30: -0.152147326 | S30: -1.690135499 | T30: -0.07697760005 | U30: 0.1815152303 | V30: 0.9760082181 | W30: 0.04840556393 | X30: -0.007607366298 | Y30: 0.1739078641 | AA30: 0.00397217429 | AB30: 0.0001666695169 | AC30: 3.693929532e-06 | AD30: -0.01512732557 | AE30: -0.0009184015907 | AF30: -2.214530036e-05
E31: 0.04730306874 | F31: -1.692593424 | G31: -0.08062691917 | H31: 0.1813492954 | I31: 0.9776077393 | J31: 0.05134857179 | K31: -0.007481691883 | M31: -1.608175585 | N31: -0.07662099285 | O31: 0.1727174672 | P31: 19.2629701 | Q31: 1.007994845 | R31: -0.1501151509 | S31: -1.688584365 | T31: -0.08045204249 | U31: 0.1813533406 | V31: 0.963148505 | W31: 0.05039974224 | X31: -0.007505757544 | Y31: 0.173847583 | AA31: 0.004009059434 | AB31: 0.0001748766751 | AC31: 4.045137903e-06 | AD31: -0.01445923435 | AE31: -0.0009488295536 | AF31: -2.406566138e-05
A32: 取付点まわりの回転運動の解析解(微小振動） | E32: 0.0493597239 | F32: -1.691012354 | G32: -0.08410638576 | H32: 0.1811798951 | I32: 0.9635396381 | J32: 0.05334479913 | K32: -0.007374027843 | M32: -1.606633801 | N32: -0.07992688106 | O32: 0.1725564842 | P32: 18.99534028 | Q32: 1.047338698 | R32: -0.1480015004 | S32: -1.686965492 | T32: -0.08392322511 | U32: 0.1811843084 | V32: 0.9497670139 | W32: 0.0523669349 | X32: -0.007400075019 | Y32: 0.1737842333 | AA32: 0.004046862383 | AB32: 0.0001831606518 | AC32: 4.413304239e-06 | AD32: -0.0137726242 | AE32: -0.0009778642221 | AF32: -2.6047176e-05
A33: z＝Bcos(ωqt＋β) | D33: [m] | E33: 0.05141637906 | F33: -1.689364526 | G33: -0.08758253198 | H33: 0.181003342 | I33: 0.9489390152 | J33: 0.05531154426 | K33: -0.007262288382 | M33: -1.605027647 | N33: -0.08322953213 | O33: 0.1723887054 | P33: 18.7174048 | Q33: 1.086121509 | R33: -0.1458075064 | S33: -1.685279029 | T33: -0.08739100873 | U33: 0.1810081406 | V33: 0.9358702401 | W33: 0.05430607544 | X33: -0.007290375322 | Y33: 0.1737177653 | AA33: 0.004085496678 | AB33: 0.000191523246 | AC33: 4.798588411e-06 | AD33: -0.01306877508 | AE33: -0.001005468822 | AF33: -2.808694043e-05
A34: z'＝-Bωqsin(ωqt＋β) | D34: [m/s] | E34: 0.05347303423 | F34: -1.687650004 | G34: -0.09105522059 | H34: 0.1808196433 | I34: 0.9338139398 | J34: 0.05724772023 | K34: -0.007146535254 | M34: -1.603357267 | N34: -0.08652881382 | O34: 0.1722141376 | P34: 18.42929907 | Q34: 1.12432222 | R34: -0.1435343446 | S34: -1.68352513 | T34: -0.09085525451 | U34: 0.1808248445 | V34: 0.9214649534 | W34: 0.056216111 | X34: -0.007176717232 | Y34: 0.1736481272 | AA34: 0.004124873748 | AB34: 0.0001999660769 | AC34: 5.201153802e-06 | AD34: -0.0123489864 | AE34: -0.001031609231 | AF34: -3.018197796e-05
A35: z''＝-Bωq^2cos(ωqt＋β) | D35: [m/s^2] | E35: 0.05552968939 | F35: -1.685868857 | G35: -0.09452431449 | H35: 0.1806288061 | I35: 0.9181727713 | J35: 0.05915225696 | K35: -0.007026832434 | M35: -1.601622813 | N35: -0.0898245942 | O35: 0.1720327879 | P35: 18.13116396 | Q35: 1.161920059 | R35: -0.1411832336 | S35: -1.681703954 | T35: -0.09431582391 | U35: 0.1806344273 | V35: 0.9065581978 | W35: 0.05809600295 | X35: -0.007059161678 | Y35: 0.1735752656 | AA35: 0.004164903096 | AB35: 0.0002084905792 | AC35: 5.621166941e-06 | AD35: -0.01161457348 | AE35: -0.001056254018 | AF35: -3.232924447e-05
A36: ωq＝√{(2/3)g/r} | C36: =SQRT((2/3)*$C$11/$C$13) -> 11.43095213 | D36: [rad/s] | E36: 0.05758634455 | F36: -1.684021155 | G36: -0.09798967674 | H36: 0.180430838 | I36: 0.9020241541 | J36: 0.06102410188 | K36: -0.006903246077 | M36: -1.59982444 | N36: -0.09311674165 | O36: 0.1718446636 | P36: 17.8231458 | Q36: 1.198894548 | R36: -0.1387554342 | S36: -1.679815662 | T36: -0.09777257874 | U36: 0.1804368968 | V36: 0.8911572901 | W36: 0.05994472741 | X36: -0.006937771711 | Y36: 0.1734991251 | AA36: 0.004205492473 | AB36: 0.0002170979999 | AC36: 6.058797112e-06 | AD36: -0.0108668639 | AE36: -0.001079374469 | AF36: -3.4525634e-05
A37: B＝z0/√[1＋{z'0/(z0ωq)}^2] | C37: =ABS($C$39/SQRT(1+($C$40/($C$39*$C$36))^2)) -> 0.00872664626 | D37: [m] | E37: 0.05964299971 | F37: -1.68210697 | G37: -0.1014511705 | H37: 0.1802257468 | I37: 0.8853770129 | J37: 0.06286222046 | K37: -0.006775844487 | M37: -1.597962307 | N37: -0.09640512488 | O37: 0.1716497724 | P37: 17.50539638 | Q37: 1.235225517 | R37: -0.1362522494 | S37: -1.677860422 | T37: -0.1012253811 | U37: 0.180232261 | V37: 0.875269819 | W37: 0.06176127585 | X37: -0.006812612471 | Y37: 0.1734196486 | AA37: 0.004246548073 | AB37: 0.0002257893946 | AC37: 6.514215967e-06 | AD37: -0.01010719393 | AE37: -0.001100944611 | AF37: -3.676798431e-05
A38: β＝tan^-1{－z'0/(z0ωq)} | C38: =IF($C$36*$C$39=0,IF($C$40=0,0,10^100),ATAN2($C$36*$C$39,-$C$40)) -> 3.141592654 | D38: [rad] | E38: 0.06169965488 | F38: -1.680126379 | G38: -0.1049086592 | H38: 0.1800135406 | I38: 0.8682405484 | J38: 0.06466559683 | K38: -0.006644698074 | M38: -1.596036576 | N38: -0.09968961291 | O38: 0.1714481221 | P38: 17.17807287 | Q38: 1.270893112 | R38: -0.1336750231 | S38: -1.675838404 | T38: -0.1046740936 | U38: 0.1800205282 | V38: 0.8589036435 | W38: 0.0635446556 | X38: -0.006683751157 | Y38: 0.1733367771 | AA38: 0.004287974719 | AB38: 0.0002345656244 | AC38: 6.987597131e-06 | AD38: -0.009336904945 | AE38: -0.001120941223 | AF38: -3.905308262e-05
A39: 初期変位 | B39: z0 | C39: =$C$13*$C$19 -> -0.00872664626 | D39: [m] | E39: 0.06375631004 | F39: -1.678079459 | G39: -0.1083620062 | H39: 0.1797942278 | I39: 0.8506242313 | J39: 0.0664332343 | K39: -0.006509879321 | M39: -1.594047413 | N39: -0.1029700751 | O39: 0.1712397209 | P39: 16.84133783 | Q39: 1.305877809 | R39: -0.1310251398 | S39: -1.673749783 | T39: -0.1081185789 | U39: 0.1798017069 | V39: 0.8420668913 | W39: 0.06529389045 | X39: -0.006551256992 | Y39: 0.1732504499 | AA39: 0.004329676057 | AB39: 0.0002434273537 | AC39: 7.479115799e-06 | AD39: -0.008557339936 | AE39: -0.001139343848 | AF39: -4.137767121e-05
A40: 初期速度 | B40: z'0 | C40: =$C$13*$C$20 -> 0 | D40: [m/s] | E40: 0.0658129652 | F40: -1.675966292 | G40: -0.1118110753 | H40: 0.179567817 | I40: 0.8325377976 | J40: 0.06816415596 | K40: -0.006371462737 | M40: -1.591994988 | N40: -0.1062463812 | O40: 0.1710245771 | P40: 16.49535915 | Q40: 1.340160424 | R40: -0.1283040238 | S40: -1.671594737 | T40: -0.1115587003 | U40: 0.1795758059 | V40: 0.8247679576 | W40: 0.06700802118 | X40: -0.00641520119 | Y40: 0.1731606048 | AA40: 0.00437155475 | AB40: 0.0002523750474 | AC40: 7.988948325e-06 | AD40: -0.007769840001 | AE40: -0.001156134787 | AF40: -4.373845311e-05
E41: 0.06786962036 | F41: -1.67378696 | G41: -0.1152557303 | H41: 0.1793343172 | I41: 0.8139912433 | J41: 0.06985740518 | K41: -0.006229524821 | M41: -1.589879474 | N41: -0.1095184013 | O41: 0.1708026995 | P41: 16.14031005 | Q41: 1.373722122 | R41: -0.1255131384 | S41: -1.669373448 | T41: -0.1149943214 | U41: 0.1793428344 | V41: 0.8070155024 | W41: 0.06868610608 | X41: -0.006275656919 | Y41: 0.1730671775 | AA41: 0.004413512676 | AB41: 0.0002614089695 | AC41: 8.517271815e-06 | AD41: -0.006975740946 | AE41: -0.001171299095 | AF41: -4.613209781e-05
E42: 0.06992627553 | F42: -1.67154155 | G42: -0.1186958352 | H42: 0.1790937375 | I42: 0.7949948185 | J42: 0.07151204614 | K42: -0.006084144019 | M42: -1.587701047 | N42: -0.1127860057 | O42: 0.1705740969 | P42: 15.77636897 | Q42: 1.406544431 | R42: -0.1226539853 | S42: -1.667086099 | T42: -0.118425306 | U42: 0.1791028018 | V42: 0.7888184486 | W42: 0.07032722157 | X42: -0.006132699266 | Y42: 0.1729701025 | AA42: 0.004455451125 | AB42: 0.0002705291815 | AC42: 9.064263709e-06 | AD42: -0.006176369949 | AE42: -0.001184824568 | AF42: -4.855524686e-05
E43: 0.07198293069 | F43: -1.669230151 | G43: -0.1221312542 | H43: 0.1788460876 | I43: 0.7755590221 | J43: 0.07312716436 | K43: -0.005935400679 | M43: -1.585459885 | N43: -0.1160490654 | O43: 0.1703387787 | P43: 15.40371959 | Q43: 1.438609253 | R43: -0.119728104 | S43: -1.66473288 | T43: -0.1218515187 | U43: 0.1788557177 | V43: 0.7701859797 | W43: 0.07193046264 | X43: -0.005986405199 | Y43: 0.1728693125 | AA43: 0.004497271 | AB43: 0.0002797355414 | AC43: 9.630101364e-06 | AD43: -0.005373042319 | AE43: -0.001196701717 | AF43: -5.100451954e-05
E44: 0.07403958585 | F44: -1.666852853 | G44: -0.1255618517 | H44: 0.1785913771 | I44: 0.7556945955 | J44: 0.07470186721 | K44: -0.005783377007 | M44: -1.583156171 | N44: -0.1193074514 | O44: 0.1700967543 | P44: 15.02255074 | Q44: 1.469898869 | R44: -0.1167370705 | S44: -1.66231398 | T44: -0.1252728239 | U44: 0.178601592 | V44: 0.7511275372 | W44: 0.07349494347 | X44: -0.005836853525 | Y44: 0.1727647385 | AA44: 0.004538873017 | AB44: 0.0002890277035 | AC44: 1.021496164e-05 | AD44: -0.004567058349 | AE44: -0.001206923746 | AF44: -5.347651836e-05
E45: 0.07609624101 | F45: -1.66440975 | G45: -0.1289874921 | H45: 0.1783296161 | I45: 0.7354125174 | J45: 0.07623528441 | K45: -0.005628157021 | M45: -1.580790088 | N45: -0.1225610353 | O45: 0.1698480335 | P45: 14.63305634 | Q45: 1.500395958 | R45: -0.1136824971 | S45: -1.659829592 | T45: -0.128689087 | U45: 0.1783404351 | V45: 0.7316528172 | W45: 0.0750197979 | X45: -0.005684124856 | Y45: 0.1726563103 | AA45: 0.004580157905 | AB45: 0.0002984051174 | AC45: 1.081902046e-05 | AD45: -0.003759700287 | AE45: -0.001215486512 | AF45: -5.596783459e-05
E46: 0.07815289618 | F46: -1.66190094 | G46: -0.1324080404 | H46: 0.178060815 | I46: 0.7147239972 | J46: 0.07772656847 | K46: -0.005469826509 | M46: -1.578361822 | N46: -0.1258096889 | O46: 0.1695926261 | P46: 14.23543535 | Q46: 1.5300836 | R46: -0.1105660313 | S46: -1.657279913 | T46: -0.1321001734 | U46: 0.1780722574 | V46: 0.7117717677 | W46: 0.07650417998 | X46: -0.005528301563 | Y46: 0.1725439559 | AA46: 0.004621026605 | AB46: 0.0003078670291 | AC46: 1.144245243e-05 | AD46: -0.002952229424 | AE46: -0.00122238849 | AF46: -5.84750537e-05
E47: 0.08020955134 | F47: -1.65932652 | G47: -0.1358233615 | H47: 0.1777849843 | I47: 0.6936404687 | J47: 0.07917489521 | K47: -0.005308472975 | M47: -1.575871562 | N47: -0.1290532847 | O47: 0.1693305426 | P47: 13.82989171 | Q47: 1.55894529 | R47: -0.1073893547 | S47: -1.65466514 | T47: -0.135505949 | U47: 0.1777970698 | V47: 0.6914945854 | W47: 0.07794726448 | X47: -0.005369467735 | Y47: 0.172427602 | AA47: 0.00466138047 | AB47: 0.000317412481 | AC47: 1.208543038e-05 | AD47: -0.002145883322 | AE47: -0.001227630726 | AF47: -6.099476064e-05
E48: 0.0822662065 | F48: -1.656686594 | G48: -0.1392333204 | H48: 0.177502135 | I48: 0.6721735843 | J48: 0.08057946416 | K48: -0.005144185594 | M48: -1.573319497 | N48: -0.1322916953 | O48: 0.1690617935 | P48: 13.41663422 | Q48: 1.586964948 | R48: -0.1041541828 | S48: -1.651985472 | T48: -0.1389062801 | U48: 0.1775148832 | V48: 0.6708317111 | W48: 0.07934824738 | X48: -0.005207709139 | Y48: 0.172307174 | AA48: 0.004701121466 | AB48: 0.0003270403135 | AC48: 1.274812496e-05 | AD48: -0.001341873181 | AE48: -0.001231216783 | AF48: -6.352354515e-05
E49: 0.08432286166 | F49: -1.653981264 | G49: -0.1426377827 | H49: 0.1772122782 | I49: 0.650335208 | J49: 0.08193949907 | K49: -0.004977055164 | M49: -1.57070582 | N49: -0.1355247938 | O49: 0.1687863895 | P49: 12.99587653 | Q49: 1.614126928 | R49: -0.1008622634 | S49: -1.649241111 | T49: -0.1423010335 | U49: 0.177225709 | V49: 0.6497938267 | W49: 0.08070634638 | X49: -0.00504311317 | Y49: 0.1721825958 | AA49: 0.004740152362 | AB49: 0.0003367491658 | AC49: 1.343070423e-05 | AD49: -0.0005413813506 | AE49: -0.001233152686 | AF49: -6.605800681e-05
E50: 0.08637951683 | F50: -1.651210637 | G50: -0.1460366139 | H50: 0.1769154254 | I50: 0.6281374095 | J50: 0.08325424828 | K50: -0.004807174053 | M50: -1.568030724 | N50: -0.1387524537 | O50: 0.1685043417 | P50: 12.56783701 | Q50: 1.640416028 | R50: -0.09751537625 | S50: -1.64643226 | T50: -0.1456900764 | U50: 0.1769295588 | V50: 0.6283918505 | W50: 0.08202080142 | X50: -0.004875768813 | Y50: 0.1720537899 | AA50: 0.004778376931 | AB50: 0.0003465374784 | AC50: 1.413333327e-05 | AD50: 0.0002544409877 | AE50: -0.001233446861 | AF50: -6.859476008e-05
E51: 0.08843617199 | F51: -1.648374824 | G51: -0.1494296798 | H51: 0.1766115883 | I51: 0.6055924568 | J51: 0.08452298516 | K51: -0.004634636149 | M51: -1.565294404 | N51: -0.1419745488 | O51: 0.1682156614 | P51: 12.13273866 | Q51: 1.665817502 | R51: -0.09411533176 | S51: -1.643559124 | T51: -0.1490732763 | U51: 0.1766264445 | V51: 0.6066369328 | W51: 0.0832908751 | X51: -0.004705766588 | Y51: 0.1719206779 | AA51: 0.004815700139 | AB51: 0.0003564034951 | AC51: 1.485617371e-05 | AD51: 0.001044475982 | AE51: -0.001232110066 | AF51: -7.113043916e-05
E52: 0.09049282715 | F52: -1.645473936 | G52: -0.1528168464 | H52: 0.1763007788 | I52: 0.5827128098 | J52: 0.08574500853 | K52: -0.00445953681 | M52: -1.562497055 | N52: -0.1451909535 | O52: 0.1679203602 | P52: 11.69080902 | Q52: 1.690317064 | R52: -0.09066397026 | S52: -1.640621907 | T52: -0.1524505012 | U52: 0.1763163782 | V52: 0.5845404509 | W52: 0.08451585321 | X52: -0.004533198513 | Y52: 0.1717831797 | AA52: 0.004852028334 | AB52: 0.0003663452655 | AC52: 1.559938339e-05 | AD52: 0.001827641094 | AE52: -0.001229155324 | AF52: -7.366170273e-05
E53: 0.09254948231 | F53: -1.642508087 | G53: -0.1561979802 | H53: 0.1759830093 | I53: 0.5595111136 | J53: 0.086919643 | K53: -0.004281972808 | M53: -1.559638874 | N53: -0.1484015424 | O53: 0.1676184499 | P53: 11.24228009 | Q53: 1.713900903 | R53: -0.08716316093 | S53: -1.637620817 | T53: -0.1558216195 | U53: 0.1759993724 | V53: 0.5621140045 | W53: 0.08569504515 | X53: -0.004358158047 | Y53: 0.1716412144 | AA53: 0.004887269431 | AB53: 0.0003763606482 | AC53: 1.636311595e-05 | AD53: 0.002602890908 | AE53: -0.001224597844 | AF53: -7.618523848e-05
E54: 0.09460613748 | F54: -1.639477395 | G54: -0.1595729475 | H54: 0.1756582923 | I54: 0.536000191 | J54: 0.08804623938 | K54: -0.004102042278 | M54: -1.556720059 | N54: -0.1516061906 | O54: 0.1673099427 | P54: 10.7873882 | Q54: 1.736555689 | R54: -0.08361480092 | S54: -1.634556062 | T54: -0.1591865001 | U54: 0.1756754398 | V54: 0.5393694098 | W54: 0.08682778443 | X54: -0.004180740046 | Y54: 0.1714946998 | AA54: 0.004921333096 | AB54: 0.0003864473142 | AC54: 1.714752041e-05 | AD54: 0.003369218759 | AE54: -0.001218454949 | AF54: -7.86977676e-05
E55: 0.09666279264 | F55: -1.636381979 | G55: -0.1629416151 | H55: 0.1753266406 | I55: 0.5121930359 | J55: 0.08912417503 | K55: -0.003919844663 | M55: -1.553740807 | N55: -0.1548047736 | O55: 0.1669948508 | P55: 10.32637388 | Q55: 1.758268581 | R55: -0.08002081424 | S55: -1.631427848 | T55: -0.1625450123 | U55: 0.1753445933 | V55: 0.5163186941 | W55: 0.08791342904 | X55: -0.004001040712 | Y55: 0.1713435526 | AA55: 0.004954130921 | AB55: 0.0003966027507 | AC55: 1.795274084e-05 | AD55: 0.004125658168 | AE55: -0.001210745987 | AF55: -8.1196049e-05
E56: 0.0987194478 | F56: -1.633221961 | G56: -0.1663038501 | H56: 0.1749880673 | I56: 0.4881028059 | J56: 0.09015285421 | K56: -0.003735480657 | M56: -1.550701319 | N56: -0.1579971674 | O56: 0.1666731868 | P56: 9.8594818 | Q56: 1.779027239 | R56: -0.07638315082 | S56: -1.628236385 | T56: -0.1658970258 | U56: 0.1750068462 | V56: 0.49297409 | W56: 0.08895136196 | X56: -0.003819157541 | Y56: 0.1711876886 | AA56: 0.0049855766 | AB56: 0.0004068242652 | AC56: 1.877891592e-05 | AD56: 0.004871284094 | AE56: -0.001201492256 | AF56: -8.367688339e-05
E57: 0.100776103 | F57: -1.629997467 | G57: -0.1696595196 | H57: 0.1746425857 | I57: 0.4637428149 | J57: 0.0911317084 | K57: -0.003549052155 | M57: -1.547601791 | N57: -0.1611832482 | O57: 0.1663449637 | P57: 9.386960578 | Q57: 1.79881983 | R57: -0.07270378544 | S57: -1.624981881 | T57: -0.1692424106 | U57: 0.1746622119 | V57: 0.4693480289 | W57: 0.08994099149 | X57: -0.003635189272 | Y57: 0.1710270226 | AA57: 0.005015586093 | AB57: 0.0004171089899 | AC57: 1.962617864e-05 | AD57: 0.005605213997 | AE57: -0.001190716908 | AF57: -8.613711721e-05
E58: 0.1028327581 | F58: -1.626708623 | G58: -0.1730084913 | H58: 0.1742902096 | I58: 0.4391265261 | J58: 0.09206019661 | K58: -0.003360662189 | M58: -1.544442424 | N58: -0.1643628928 | O58: 0.1660101945 | P58: 8.909062696 | Q58: 1.817635035 | R58: -0.06898471671 | S58: -1.621664545 | T58: -0.1725810375 | U58: 0.1743107043 | V58: 0.4454531348 | W58: 0.09088175174 | X58: -0.003449235836 | Y58: 0.1708614684 | AA58: 0.005044077792 | AB58: 0.0004274538868 | AC58: 2.04946559e-05 | AD58: 0.006326608702 | AE58: -0.00117844487 | AF58: -8.857364635e-05
E59: 0.1048894133 | F59: -1.62335556 | G59: -0.176350633 | H59: 0.1739309528 | I59: 0.4142675441 | J59: 0.09293780569 | K59: -0.003170414879 | M59: -1.541223416 | N59: -0.1675359783 | O59: 0.1656688926 | P59: 8.426044344 | Q59: 1.835462059 | R59: -0.06522796597 | S59: -1.618284587 | T59: -0.1759127772 | U59: 0.1739523373 | V59: 0.4213022172 | W59: 0.09177310295 | X59: -0.003261398298 | Y59: 0.170690939 | AA59: 0.005070972673 | AB59: 0.0004378557525 | AC59: 2.13844682e-05 | AD59: 0.007034673079 | AE59: -0.001164702748 | AF59: -9.098341972e-05
E60: 0.1069460685 | F60: -1.619938409 | G60: -0.1796858126 | H60: 0.1735648295 | I60: 0.389179608 | J60: 0.09376405062 | K60: -0.002978415367 | M60: -1.537944966 | N60: -0.1707023823 | O60: 0.1653210717 | P60: 7.93816529 | Q60: 1.852290638 | R60: -0.06143557619 | S60: -1.614842214 | T60: -0.1792375014 | U60: 0.1735871252 | V60: 0.3969082645 | W60: 0.09261453188 | X60: -0.00307177881 | Y60: 0.1705153464 | AA60: 0.005096194453 | AB60: 0.0004483112241 | AC60: 2.229572925e-05 | AD60: 0.007728656525 | AE60: -0.001149518736 | AF60: -9.336344259e-05
E61: 0.1090027236 | F61: -1.616457305 | G61: -0.1830138985 | H61: 0.1731918542 | I61: 0.363876583 | J61: 0.09453847474 | K61: -0.002784769768 | M61: -1.534607272 | N61: -0.1738619826 | O61: 0.1649667454 | P61: 7.445688724 | Q61: 1.868111044 | R61: -0.05760961095 | S61: -1.611337636 | T61: -0.1825550817 | U61: 0.1732150827 | V61: 0.3722844362 | W61: 0.09340555221 | X61: -0.002880480547 | Y61: 0.1703346022 | AA61: 0.005119669726 | AB61: 0.0004588167845 | AC61: 2.322854574e-05 | AD61: 0.00840785326 | AE61: -0.001132922527 | AF61: -9.571077977e-05
E62: 0.1110593788 | F62: -1.612912387 | G62: -0.1863347594 | H62: 0.1728120415 | I62: 0.3383724534 | J62: 0.09526065005 | K62: -0.002589585103 | M62: -1.531210533 | N62: -0.1770146577 | O62: 0.1646059281 | P62: 6.948881117 | Q62: 1.882914097 | R62: -0.05375215323 | S62: -1.607771059 | T62: -0.1858653906 | U62: 0.1728362245 | V62: 0.3474440559 | W62: 0.09414570483 | X62: -0.002687607661 | Y62: 0.1701486169 | AA62: 0.005141328107 | AB62: 0.0004693687689 | AC62: 2.418301691e-05 | AD62: 0.009071602439 | AE62: -0.001114945221 | AF62: -9.802255862e-05
E63: 0.1131160339 | F63: -1.609303794 | G63: -0.189648264 | H63: 0.1724254065 | I63: 0.3126813148 | J63: 0.09593017744 | K63: -0.002392969246 | M63: -1.527754945 | N63: -0.1801602864 | O63: 0.164238634 | P63: 6.448012057 | Q63: 1.896691164 | R63: -0.04986530435 | S63: -1.604142692 | T63: -0.1891683007 | U63: 0.1724505657 | V63: 0.3224006028 | W63: 0.09483455821 | X63: -0.002493265217 | Y63: 0.1699573005 | AA63: 0.005161102357 | AB63: 0.0004799633709 | AC63: 2.515923437e-05 | AD63: 0.009719288074 | AE63: -0.001095619228 | AF63: -0.0001002959718
E64: 0.1151726891 | F64: -1.605631668 | G64: -0.1929542817 | H64: 0.1720319645 | I64: 0.2868173658 | J64: 0.09654668686 | K64: -0.002195030861 | M64: -1.524240705 | N64: -0.1832987477 | O64: 0.1638648779 | P64: 5.943354091 | Q64: 1.909434174 | R64: -0.04595118281 | S64: -1.60045274 | T64: -0.1924636851 | U64: 0.1720581217 | V64: 0.2971677046 | W64: 0.09547170868 | X64: -0.002297559141 | Y64: 0.1697605626 | AA64: 0.005178928505 | AB64: 0.000490596649 | AC64: 2.615728173e-05 | AD64: 0.01035033878 | AE64: -0.001074978181 | AF64: -0.0001025282799
E65: 0.1172293443 | F65: -1.601896155 | G65: -0.1962526819 | H65: 0.1716317309 | I65: 0.2607949008 | J65: 0.0971098376 | K65: -0.001995879343 | M65: -1.520668009 | N65: -0.1864299213 | O65: 0.1634846744 | P65: 5.435182563 | Q65: 1.921135615 | R65: -0.04201192313 | S65: -1.596701409 | T65: -0.1957514174 | U65: 0.1716589081 | V65: 0.2717591281 | W65: 0.09605678075 | X65: -0.002100596156 | Y65: 0.169558312 | AA65: 0.005194745966 | AB65: 0.000501264534 | AC65: 2.717723437e-05 | AD65: 0.01096422737 | AE65: -0.001053056842 | AF65: -0.0001047168139
E66: 0.1192859994 | F66: -1.598097402 | G66: -0.1995433344 | H66: 0.1712247216 | I66: 0.2346283016 | J66: 0.09761931841 | K66: -0.001795624757 | M66: -1.517037051 | N66: -0.1895536872 | O66: 0.1630980388 | P66: 4.923775436 | Q66: 1.931788548 | R66: -0.03804967469 | S66: -1.592888904 | T66: -0.1990313715 | U66: 0.1712529408 | V66: 0.2461887718 | W66: 0.09658942739 | X66: -0.001902483734 | Y66: 0.169350457 | AA66: 0.005208497645 | AB66: 0.0005119628351 | AC66: 2.821915918e-05 | AD66: =V66-I66 -> 0.01156047021 | AE66: -0.001029891012 | AF66: -0.0001068589773
E67: 0.1213426546 | F67: -1.594235558 | G67: -0.2028261092 | H67: 0.1708109526 | I67: 0.2083320299 | J67: 0.09807484771 | K67: -0.001594377779 | M67: -1.513348027 | N67: -0.1926699257 | O67: 0.1627049864 | P67: 4.409413128 | Q67: 1.941386605 | R67: -0.03406660055 | S67: -1.589015428 | T67: -0.202303422 | U67: 0.1708402358 | V67: 0.2204706564 | W67: 0.09706933027 | X67: -0.001703330028 | Y67: 0.1691369057 | AA67: =S67-F67 -> 0.005220130033 | AB67: 0.0005226872482 | AC67: 2.928311431e-05 | AD67: 0.01213862652 | AE67: -0.001005517443 | AF67: -0.0001089522482
E68: 0.1233993098 | F68: -1.590310777 | G68: -0.2061008768 | H68: 0.1703904404 | I68: 0.1819206187 | J68: 0.09847617376 | K68: -0.001392249633 | M68: -1.509601127 | N68: -0.1957785176 | O68: 0.1623055329 | P68: 3.892378324 | Q68: 1.949924 | R68: -0.03006487629 | S68: -1.585081183 | T68: -0.2055674434 | U68: 0.1704208095 | V68: 0.1946189162 | W68: 0.09749620001 | X68: -0.001503243815 | Y68: 0.1689175657 | AA68: 0.005229593301 | AB68: 0.0005334333629 | AC68: 3.036914893e-05 | AD68: 0.01269829746 | AE68: -0.0009799737503 | AF68: -0.0001109941813
E69: 0.1254559649 | F69: -1.586323213 | G69: -0.2093675079 | H69: 0.1699632014 | I69: 0.1554086651 | J69: 0.09882307474 | K69: -0.001189352029 | M69: -1.505796544 | N69: -0.198879344 | O69: 0.161899694 | P69: 3.372955803 | Q69: 1.957395528 | R69: -0.02604668877 | S69: -1.581086371 | T69: -0.2088233112 | U69: 0.1699946787 | V69: 0.1686477902 | W69: 0.09786977642 | X69: -0.001302334439 | Y69: 0.1686923442 | AA69: 0.005236841376 | AB69: 0.0005441966698 | AC69: 3.147730307e-05 | AD69: 0.01323912502 | AE69: -0.0009532983263 | AF69: -0.0001129824095
E70: 0.1275126201 | F70: -1.582273023 | G70: -0.2126258735 | H70: 0.1695292525 | I70: 0.1288108214 | J70: 0.09911535894 | K70: -0.0009857971029 | M70: -1.501934468 | N70: -0.2019722866 | O70: 0.1614874858 | P70: 2.851432247 | Q70: 1.963796574 | R70: -0.02201423496 | S70: -1.577031191 | T70: -0.212070901 | U70: 0.1695618601 | V70: 0.1425716124 | W70: 0.09818982868 | X70: -0.001100711748 | Y70: 0.1684611484 | AA70: 0.005241832015 | AB70: 0.000554972569 | AC70: 3.260760736e-05 | AD70: 0.01376079092 | AE70: -0.0009255302596 | AF70: -0.0001149146451
E71: 0.1295692752 | F71: -1.578160368 | G71: -0.215875845 | H71: 0.1690886109 | I71: 0.1021417876 | J71: 0.09935286482 | K71: -0.0007816973538 | M71: -1.498015087 | N71: -0.2050572273 | O71: 0.1610689248 | P71: 2.328096056 | Q71: 1.969123111 | R71: -0.01796972071 | S71: -1.572915842 | T71: -0.2153100887 | U71: 0.169122371 | V71: 0.1164048028 | W71: 0.09845615557 | X71: -0.0008984860356 | Y71: 0.168223885 | AA71: 0.00524452687 | AB71: 0.0005657563777 | AC71: 3.37600829e-05 | AD71: 0.01426301524 | AE71: -0.0008967092534 | AF71: -0.0001167886818
E72: 0.1316259304 | F72: =-$C$27*$C$26^2*COS($C$26*$E72+$C$28) -> -1.573985411 | G72: =-$C$27*$C$26*SIN($C$26*$E72+$C$28) -> -0.2191172941 | H72: =$C$27*COS($C$26*$E72+$C$28) -> 0.168641294 | I72: 0.07541630274 | J72: 0.09953546111 | K72: -0.0005771655822 | M72: -1.49403859 | N72: -0.2081340484 | O72: 0.1606440274 | P72: 1.803237155 | Q72: 1.973371711 | R72: -0.01391535955 | S72: -1.568740519 | T72: -0.2185407508 | U72: 0.1686762287 | V72: 0.09016185774 | W72: 0.09866858556 | X72: -0.0006957679775 | Y72: 0.1679804608 | AA72: 0.005244891536 | AB72: 0.0005765433381 | AC72: 3.493474109e-05 | AD72: 0.01474555499 | AE72: -0.0008668755485 | AF72: -0.0001186023953
E73: =E72+$C$9 -> 0.1336825856 | F73: -1.569748314 | G73: -0.2223500929 | H73: 0.1681873194 | I73: =-$C$37*$C$36^2*COS($C$36*$E73+$C$38) -> 0.04864913741 | J73: =-$C$37*$C$36*SIN($C$36*$E73+$C$38) -> 0.0996630469 | K73: =$C$37*COS($C$36*$E73+$C$38) -> -0.0003723148272 | M73: -1.490005161 | N73: -0.2112026326 | O73: 0.1602128105 | P73: 1.277146801 | Q73: 1.976539541 | R73: -0.009853371435 | S73: -1.564505419 | T73: -0.2217627643 | U73: 0.168223451 | V73: 0.06385734003 | W73: 0.09882697705 | X73: -0.0004926685718 | Y73: 0.1677307824 | AA73: 0.0052428956 | AB73: 0.0005873286259 | AC73: 3.613158344e-05 | AD73: 0.01520820262 | AE73: -0.0008360698486 | AF73: -0.0001203537446
E74: 0.1357392407 | F74: -1.565449247 | G74: -0.2255741136 | H74: 0.1677267051 | I74: 0.02185508505 | J74: 0.09973555168 | K74: -0.000167258304 | M74: -1.485914985 | N74: -0.2142628631 | O74: 0.1597752911 | P74: 0.7501173876 | Q74: 1.978624369 | R74: -0.005785981536 | S74: -1.560210735 | T74: -0.2249760063 | U74: 0.1677640557 | V74: 0.03750586938 | W74: 0.09893121843 | X74: -0.0002892990768 | Y74: =U74+X74 -> 0.1674747566 | AA74: 0.005238512675 | AB74: 0.0005981073583 | AC74: 3.735060151e-05 | AD74: 0.01565078433 | AE74: -0.0008043332493 | AF74: -0.0001220407729
E75: 0.1377958959 | F75: -1.561088379 | G75: -0.2287892291 | H75: 0.1672594692 | I75: -0.004951046017 | J75: 0.09975293537 | K75: 3.789065829e-05 | M75: -1.481768246 | N75: -0.2173146233 | O75: 0.1593314866 | P75: 0.222442248 | Q75: 1.979624564 | R75: -0.001715418996 | S75: -1.555856659 | T75: -0.2281803545 | U75: 0.167298061 | V75: 0.0111221124 | W75: 0.0989812282 | X75: -8.57709498e-05 | Y75: 0.16721229 | AA75: 0.005231720424 | AB75: 0.0006088746025 | AC75: 3.859177675e-05 | AD75: 0.01607315842 | AE75: -0.0007717071704 | AF75: -0.0001236616081
E76: 0.1398525511 | F76: -1.556665882 | G76: -0.2319953123 | H76: 0.1667856302 | I76: -0.03175444078 | J76: 0.09971518837 | K76: 0.0002430186794 | M76: -1.477565125 | N76: -0.2203577971 | O76: 0.1588814145 | P76: -0.3055845461 | Q76: 1.979539101 | R76: 0.002356084313 | S76: -1.551443381 | T76: -0.2313756869 | U76: 0.1668254853 | V76: -0.01527922731 | W76: 0.09897695507 | X76: 0.0001178042157 | Y76: 0.1669432895 | AA76: 0.005222500577 | AB76: 0.0006196253837 | AC76: 3.985508042e-05 | AD76: 0.01647521347 | AE76: -0.0007382332914 | AF76: -0.0001252144637
E77: 0.1419092062 | F77: -1.55218193 | G77: -0.2351922368 | H77: 0.1663052067 | I77: -0.05854028574 | J77: 0.09962233153 | K77: 0.0004480123908 | M77: -1.473305801 | N77: -0.2233922687 | O77: 0.1584250926 | P77: -0.8336683844 | Q77: 1.978367561 | R77: 0.006426295032 | S77: -1.546971091 | T77: -0.2345618821 | U77: 0.1663463472 | V77: -0.04168341922 | W77: 0.09891837804 | X77: 0.0003213147516 | Y77: 0.166667662 | AA77: 0.005210838938 | AB77: 0.000630354694 | AC77: 4.114047353e-05 | AD77: 0.01685686652 | AE77: -0.0007039534918 | AF77: -0.0001266976392
E78: 0.1439658614 | F78: -1.5476367 | G78: -0.2383798763 | H78: 0.1658182179 | I78: -0.08529377709 | J78: 0.09947441618 | K78: 0.0006527584982 | M78: -1.468990452 | N78: -0.2264179226 | O78: 0.1579625388 | P78: -1.361514319 | Q78: 1.976110128 | R78: 0.01049297956 | S78: -1.542439975 | T78: -0.2377388188 | U78: 0.1658606658 | V78: -0.06807571594 | W78: 0.09880550639 | X78: 0.0005246489779 | Y78: 0.1663853148 | AA78: 0.005196725384 | AB78: 0.0006410575004 | AC78: 4.244790674e-05 | AD78: 0.01721806115 | AE78: -0.0006689097938 | AF78: -0.0001281095202
E79: 0.1460225165 | F79: -1.543030373 | G79: -0.2415581049 | H79: 0.1653246828 | I79: -0.1120001289 | J79: 0.09927152407 | K79: 0.0008571438439 | M79: -1.464619256 | N79: -0.229434644 | O79: 0.1574937715 | P79: -1.888827266 | Q79: 1.972767595 | R79: 0.0145539053 | S79: -1.537850219 | T79: -0.2409063762 | U79: 0.1653684601 | V79: -0.09444136331 | W79: 0.09863837976 | X79: 0.0007276952649 | Y79: 0.1660961554 | AA79: 0.005180153847 | AB79: 0.0006517287532 | AC79: 4.377732035e-05 | AD79: 0.01755876562 | AE79: -0.0006331443101 | AF79: -0.000129448579
E80: 0.1480791717 | F80: -1.538363129 | G80: -0.2447267973 | H80: 0.164824621 | I80: -0.1386445814 | J80: 0.09901376733 | K80: 0.00106105547 | M80: -1.460192387 | N80: -0.232442318 | O80: 0.1570188092 | P80: -2.41531221 | Q80: 1.968341363 | R80: 0.01860684191 | S80: -1.533202007 | T80: -0.2440644339 | U80: 0.1648697496 | V80: -0.1207656105 | W80: 0.09841706814 | X80: 0.0009303420955 | Y80: 0.1658000917 | AA80: 0.005161122301 | AB80: 0.0006623633943 | AC80: 4.512864426e-05 | AD80: 0.01787897088 | AE80: -0.0005966991948 | AF80: -0.0001307133744
E81: 0.1501358269 | F81: -1.533635153 | G81: -0.2478858282 | H81: 0.1643180522 | I81: -0.1652124088 | J81: 0.09870128842 | K81: 0.00126438068 | M81: -1.45571002 | N81: -0.2354408303 | O81: 0.1565376704 | P81: -2.940674405 | Q81: 1.962833436 | R81: 0.02264956256 | S81: -1.528495521 | T81: -0.2472128719 | U81: 0.164364554 | V81: -0.1470337202 | W81: 0.09814167182 | X81: 0.001132478128 | Y81: 0.1654970321 | AA81: 0.005139632724 | AB81: 0.0006729563657 | AC81: 4.650179799e-05 | AD81: 0.0181786886 | AE81: -0.0005596165991 | AF81: -0.000131902552
E82: 0.152192482 | F82: -1.528846633 | G82: -0.2510350731 | H82: 0.1638049963 | I82: -0.1916889279 | J82: 0.09833426002 | K82: 0.001467007101 | M82: -1.451172325 | N82: -0.2384300671 | O82: 0.1560503743 | P82: -3.464619572 | Q82: 1.956246428 | R82: 0.02667984515 | S82: -1.523730941 | T82: -0.2503515705 | U82: 0.163852893 | V82: -0.1732309786 | W82: 0.09781232139 | X82: 0.001333992257 | Y82: 0.1651868853 | AA82: 0.005115691064 | AB82: 0.0006835026176 | AC82: 4.789669062e-05 | AD82: 0.0184579493 | AE82: -0.0005219386306 | AF82: -0.000133014844
E83: 0.1542491372 | F83: -1.523997755 | G83: -0.2541744075 | H83: 0.1632854738 | I83: -0.2180595058 | J83: 0.097912885 | K83: 0.001668822749 | M83: -1.446579474 | N83: -0.2414099146 | O83: 0.15555694 | P83: -3.98685411 | Q83: 1.948583554 | R83: 0.03069547359 | S83: -1.518908448 | T83: -0.2534804104 | U83: 0.163334787 | V83: -0.1993427055 | W83: 0.09742917768 | X83: 0.00153477368 | Y83: 0.1648695607 | AA83: 0.005089307189 | AB83: 0.0006939971164 | AC83: 4.931322089e-05 | AD83: 0.01871680034 | AE83: -0.0004837073162 | AF83: -0.0001340490692
E84: 0.1563057924 | F84: -1.519088713 | G84: -0.2573037075 | H84: 0.162759505 | I84: -0.2443095683 | J84: 0.09743739623 | K84: 0.001869716084 | M84: -1.441931637 | N84: -0.2443802597 | O84: 0.1550573869 | P84: -4.507085285 | Q84: 1.939848633 | R84: 0.03469423902 | S84: -1.514028219 | T84: -0.2565992727 | U84: 0.1628102563 | V84: -0.2253542642 | W84: 0.09699243166 | X84: 0.001734711951 | Y84: 0.1645449682 | AA84: 0.005060494828 | AB84: 0.0007044348526 | AC84: 5.075127722e-05 | AD84: 0.01895530405 | AE84: -0.00044496457 | AF84: -0.0001350041327
E85: 0.1583624475 | F85: -1.5141197 | G85: -0.2604228497 | H85: 0.1622271108 | I85: -0.2704246076 | J85: 0.0969080565 | K85: 0.002069576078 | M85: -1.43722898 | N85: -0.2473409893 | O85: 0.1545517348 | P85: -5.025021434 | Q85: 1.930046087 | R85: 0.03867394106 | S85: -1.509090429 | T85: -0.2597080388 | U85: 0.1622793215 | V85: -0.2512510717 | W85: 0.09650230433 | X85: 0.001933697053 | Y85: 0.1642130185 | AA85: 0.005029271507 | AB85: 0.0007148108492 | AC85: 5.221073773e-05 | AD85: 0.01917353587 | AE85: -0.0004057521638 | AF85: -0.0001358790256
E86: 0.1604191027 | F86: -1.509090913 | G86: -0.2635317107 | H86: 0.1616883121 | I86: -0.2963901907 | J86: 0.09632515836 | K86: 0.002268292275 | M86: -1.432471671 | N86: -0.250291991 | O86: 0.1540400034 | P86: -5.540372163 | Q86: 1.919180933 | R86: 0.04263238901 | S86: -1.504095254 | T86: -0.2628065906 | U86: 0.1617420035 | V86: -0.2770186081 | W86: 0.09595904666 | X86: 0.002131619451 | Y86: 0.163873623 | AA86: 0.004995658479 | AB86: 0.0007251201688 | AC86: 5.369147037e-05 | AD86: 0.01937158252 | AE86: -0.0003661117027 | AF86: -0.0001366728248
E87: 0.1624757578 | F87: -1.504002548 | G87: -0.266630168 | H87: 0.1611431302 | I87: -0.3221919671 | J87: 0.09568902397 | K87: 0.00246575485 | M87: -1.427659874 | N87: -0.2532331525 | O87: 0.1535222129 | P87: -6.052848537 | Q87: 1.907258787 | R87: 0.04656740315 | S87: -1.499042868 | T87: -0.2658948101 | U87: 0.1611983235 | V87: -0.3026424268 | W87: 0.09536293936 | X87: 0.002328370157 | Y87: 0.1635266937 | AA87: 0.004959680635 | AB87: 0.0007353579216 | AC87: 5.519333296e-05 | AD87: 0.01954954023 | AE87: -0.0003260846029 | AF87: -0.0001373846926
E88: 0.164532413 | F88: -1.498854809 | G88: -0.2697180992 | H88: 0.1605915867 | I88: -0.3478156769 | J88: 0.09500000489 | K88: 0.00266185467 | M88: -1.422793755 | N88: -0.2561643619 | O88: 0.1529983836 | P88: -6.562163275 | Q88: 1.894285856 | R88: 0.05047681587 | S88: =($C$14+$C$13)*M88 -> -1.493933442 | T88: -0.26897258 | U88: 0.1606483028 | V88: =$C$13*P88 -> -0.3281081638 | W88: 0.09471429282 | X88: 0.002523840794 | Y88: 0.1631721436 | AA88: 0.00492136642 | AB88: 0.0007455192727 | AC88: 5.671617334e-05 | AD88: 0.01970751311 | AE88: -0.0002857120748 | AF88: -0.0001380138762
E89: 0.1665890682 | F89: -1.493647897 | G89: -0.2727953824 | H89: 0.1600337032 | I89: -0.3732471585 | J89: 0.09425848194 | K89: 0.002856483356 | M89: -1.417873475 | N89: -0.2590855076 | O89: 0.1524685363 | P89: -7.068030941 | Q89: 1.880268937 | R89: 0.05435847298 | S89: -1.488767149 | T89: -0.272039783 | U89: 0.1600919631 | V89: -0.353401547 | W89: 0.09401344683 | X89: 0.002717923649 | Y89: 0.1628098867 | AA89: 0.004880747737 | AB89: 0.0007555994491 | AC89: 5.825982945e-05 | AD89: 0.0198456115 | AE89: -0.0002450351076 | AF89: -0.0001385597073
E90: 0.1686457233 | F90: -1.488382018 | G90: -0.2758618961 | H90: 0.159469502 | I90: -0.3984723568 | J90: 0.09346486492 | K90: 0.003049533343 | M90: -1.412899199 | N90: -0.2619964785 | O90: 0.1519326915 | P90: -7.570168127 | Q90: 1.865215409 | R90: 0.05821023482 | S90: -1.483544159 | T90: -0.2750963024 | U90: 0.1595293261 | V90: -0.3785084063 | W90: 0.09326077046 | X90: 0.002910511741 | Y90: 0.1624398378 | AA90: 0.004837859836 | AB90: 0.0007655937471 | AC90: 5.982412949e-05 | AD90: 0.01996395048 | AE90: -0.0002040944588 | AF90: -0.0001390216018
E91: 0.1707023785 | F91: -1.483057381 | G91: -0.2789175193 | H91: 0.1588990051 | I91: -0.4234773304 | J91: 0.09261959245 | K91: 0.003240897937 | M91: -1.407871086 | N91: -0.2648971636 | O91: 0.1513908705 | P91: -8.068293639 | Q91: 1.849133236 | R91: 0.06202997756 | S91: -1.47826464 | T91: -0.2781420217 | U91: 0.158960414 | V91: -0.403414682 | W91: 0.09245666181 | X91: 0.003101498878 | Y91: 0.1620619129 | AA91: 0.004792741213 | AB91: 0.0007754975387 | AC91: 6.140889208e-05 | AD91: 0.02006264847 | AE91: -0.0001629306452 | AF91: -0.0001393990591
E92: 0.1727590337 | F92: -1.477674195 | G92: -0.2819621312 | H92: 0.1583222352 | I92: -0.4482482598 | J92: 0.0917231317 | K92: 0.003430471376 | M92: -1.402789297 | N92: -0.2677874523 | O92: 0.1508430944 | P92: -8.562128677 | Q92: 1.832030955 | R92: 0.06581559429 | S92: -1.472928762 | T92: -0.281176825 | U92: 0.1583852491 | V92: -0.4281064339 | W92: 0.09160154776 | X92: 0.003290779714 | Y92: 0.1616760288 | AA92: 0.004745433486 | AB92: 0.0007853062783 | AC92: 6.301392637e-05 | AD92: 0.02014182594 | AE92: -0.0001215839381 | AF92: -0.0001396916617
E93: 0.1748156888 | F93: -1.472232673 | G93: -0.2849956118 | H93: 0.157739215 | I93: -0.4727714548 | J93: 0.0907759781 | K93: 0.003618148888 | M93: -1.397653992 | N93: -0.2706672346 | O93: 0.1502893848 | P93: -9.051397011 | Q93: 1.813917675 | R93: 0.06956499628 | S93: -1.467536692 | T93: -0.2842005963 | U93: 0.157803854 | V93: -0.4525698506 | W93: 0.09069588374 | X93: 0.003478249814 | Y93: 0.1612821039 | AA93: 0.004695981272 | AB93: 0.0007950155091 | AC93: 6.46390323e-05 | AD93: 0.0202016042 | AE93: -8.009435954e-05 | AF93: -0.0001398990746
E94: 0.176872344 | F94: -1.46673303 | G94: -0.2880178413 | H94: 0.1571499675 | I94: -0.497033362 | J94: 0.08977865512 | K94: 0.00380382675 | M94: -1.392465332 | N94: -0.2735364004 | O94: 0.1497297634 | P94: -9.535825152 | Q94: 1.794803069 | R94: 0.0732761141 | S94: -1.462088598 | T94: -0.2872132204 | U94: 0.1572162515 | V94: -0.4767912576 | W94: 0.08974015344 | X94: 0.003663805705 | Y94: 0.1608800572 | AA94: 0.004644432063 | AB94: 0.000804620869 | AC94: 6.628400068e-05 | AD94: 0.02024210437 | AE94: -3.850168251e-05 | AF94: -0.000140021045
E95: 0.1789289991 | F95: -1.461175483 | G95: -0.2910287002 | H95: 0.156554516 | I95: -0.5210205726 | J95: 0.08873171396 | K95: 0.003987402341 | M95: -1.387223473 | N95: -0.2763948401 | O95: 0.1491642521 | P95: -10.01514252 | Q95: 1.774697371 | R95: 0.07694689879 | S95: -1.456584647 | T95: -0.2902145821 | U95: 0.1566224647 | V95: -0.5007571261 | W95: 0.08873486853 | X95: 0.00384734494 | Y95: 0.1604698096 | AA95: 0.004590836086 | AB95: 0.0008141180963 | AC95: 6.794861351e-05 | AD95: 0.02026344643 | AE95: 3.154568283e-06 | AF95: -0.0001400574014
E96: 0.1809856543 | F96: -1.455560251 | G96: -0.2940280699 | H96: 0.155952884 | I96: -0.5447198295 | J96: 0.08763573323 | K96: 0.004168774205 | M96: -1.381928576 | N96: -0.2792424446 | O96: 0.148592873 | P96: -10.48908162 | Q96: 1.753611367 | R96: 0.08057532303 | S96: -1.451025005 | T96: -0.2932045669 | U96: 0.1560225167 | V96: -0.5244540811 | W96: 0.08768056834 | X96: 0.004028766152 | Y96: 0.1600512828 | AA96: 0.004535246169 | AB96: 0.0008235030355 | AC96: 6.963264409e-05 | AD96: 0.02026574842 | AE96: 4.4835113e-05 | AF96: -0.0001400080535
E97: 0.1830423095 | F97: -1.449887556 | G97: -0.2970158319 | H97: 0.1553450953 | I97: -0.5681180348 | J97: 0.08649131865 | K97: 0.004347842103 | M97: -1.376580799 | N97: -0.282079105 | O97: 0.1480156487 | P97: -10.95737818 | Q97: 1.731556391 | R97: 0.08415938222 | S97: -1.445409839 | T97: -0.2961830602 | U97: 0.1554164312 | V97: -0.5478689089 | W97: 0.08657781956 | X97: 0.004207969111 | Y97: 0.1596244003 | AA97: 0.004477717592 | AB97: 0.0008327716422 | AC97: 7.13358573e-05 | AD97: 0.02024912584 | AE97: 8.650091204e-05 | AF97: -0.0001398729917
E98: 0.1850989646 | F98: -1.444157622 | G98: -0.2999918681 | H98: 0.1547311738 | I98: -0.5912022569 | J98: 0.08529910271 | K98: 0.004524507068 | M98: -1.371180299 | N98: -0.2849047125 | O98: 0.1474326017 | P98: -11.41977132 | Q98: 1.708544317 | R98: 0.08769709564 | S98: -1.439739314 | T98: -0.2991499481 | U98: 0.1548042318 | V98: -0.5709885659 | W98: 0.08542721587 | X98: 0.004384854782 | Y98: 0.1591890866 | AA98: 0.004418307945 | AB98: 0.000841919988 | AC98: 7.305800985e-05 | AD98: 0.02021369104 | AE98: 0.0001281131602 | AF98: -0.0001396522861
E99: 0.1871556198 | F99: -1.438370675 | G99: -0.3029560612 | H99: 0.1541111438 | I99: -0.6139597379 | J99: 0.08405974431 | K99: 0.004698671464 | M99: -1.365727236 | N99: -0.287719159 | O99: 0.1468437549 | P99: -11.8760037 | Q99: 1.684587552 | R99: 0.09118650754 | S99: -1.434013598 | T99: -0.302105117 | U99: 0.1541859426 | V99: -0.593800185 | W99: 0.08422937759 | X99: 0.004559325377 | Y99: 0.158745268 | AA99: 0.004357076973 | AB99: 0.0008509442653 | AC99: 7.479885044e-05 | AD99: 0.02015955295 | AE99: 0.0001696332798 | AF99: -0.0001393460865
E100: 0.189212275 | F100: -1.432526944 | G100: -0.3059082941 | H100: 0.1534850297 | I100: -0.6363779003 | J100: 0.0827739284 | K100: 0.004870239033 | M100: -1.360221769 | N100: -0.2905223365 | O100: 0.1462491313 | P100: -12.32582167 | Q100: 1.659699026 | R100: 0.09462568822 | S100: -1.428232857 | T100: -0.3050484534 | U100: 0.1535615878 | V100: -0.6162910835 | W100: 0.08298495132 | X100: 0.004731284411 | Y100: 0.1582928722 | AA100: 0.00429408642 | AB100: 0.0008598407915 | AC100: 7.655812011e-05 | AD100: 0.02008681678 | AE100: 0.0002110229136 | AF100: -0.0001389546221
E101: 0.1912689301 | F101: -1.426626659 | G101: -0.3088484503 | H101: 0.1528528563 | I101: -0.6584443542 | J101: 0.08144236564 | K101: 0.005039114956 | M101: -1.354664056 | N101: -0.2933141374 | O101: 0.1456487542 | P101: -12.7689754 | Q101: 1.633892191 | R101: 0.0980127351 | S101: -1.422397259 | T101: -0.3079798443 | U101: 0.1529311919 | V101: -0.6384487702 | W101: 0.08169460955 | X101: 0.004900636755 | Y101: 0.1578318286 | AA101: 0.004229399878 | AB101: 0.0008686060127 | AC101: 7.833555244e-05 | AD101: 0.01999558398 | AE101: 0.0002522439166 | AF101: -0.0001384782003
E102: 0.1933255853 | F102: -1.420670053 | G102: -0.3117764137 | H102: 0.1522146485 | I102: -0.6801469041 | J102: 0.08006579192 | K102: 0.005205205898 | M102: -1.349054258 | N102: -0.2960944545 | O102: 0.1450426471 | P102: -13.20521904 | Q102: 1.607181005 | R102: 0.1013457738 | S102: -1.41650697 | T102: -0.3108991772 | U102: 0.1522947794 | V102: -0.6602609518 | W102: 0.08035905027 | X102: 0.005067288691 | Y102: 0.1573620681 | AA102: 0.004163082622 | AB102: 0.0008772365078 | AC102: 8.013087384e-05 | AD102: 0.0198859523 | AE102: 0.0002932583487 | AF102: -0.0001379172071
E103: 0.1953822404 | F103: -1.414657362 | G103: -0.3146920687 | H103: 0.1515704316 | I103: -0.7014735555 | J103: 0.07864496806 | K103: 0.005368420068 | M103: -1.343392534 | N103: -0.2988631806 | O103: 0.1444308337 | P103: -13.63431079 | Q103: 1.57957993 | R103: 0.1046229592 | S103: -1.41056216 | T103: -0.3138063397 | U103: 0.1516523754 | V103: -0.6817155395 | W103: 0.07897899652 | X103: 0.005231147962 | Y103: 0.1568835234 | AA103: 0.004095201448 | AB103: 0.0008857289913 | AC103: 8.194380383e-05 | AD103: 0.01975801603 | AE103: 0.0003340284674 | AF103: -0.0001372721061
E104: 0.1974388956 | F104: -1.408588822 | G104: -0.3175953001 | H104: 0.1509202309 | I104: -0.7224125219 | J104: 0.07718067929 | K104: 0.00552866726 | M104: -1.337679045 | N104: -0.3016202094 | O104: 0.1438133381 | P104: -14.05601311 | Q104: 1.55110392 | R104: 0.1078424764 | S104: -1.404562997 | T104: -0.3167012198 | U104: 0.151004005 | V104: -0.7028006556 | W104: 0.07755519601 | X104: 0.005392123821 | Y104: 0.1563961288 | AA104: 0.004025824516 | AB104: 0.0008940803168 | AC104: 8.377405529e-05 | AD104: 0.0196118663 | AE104: 0.0003745167207 | AF104: -0.0001365434384
E105: 0.1994955508 | F105: -1.402464674 | G105: -0.3204859935 | H105: 0.1502640722 | I105: -0.7429522309 | J105: 0.07567373489 | K105: 0.00568585891 | M105: -1.331913955 | N105: -0.3043654343 | O105: 0.1431901843 | P105: -14.47009278 | Q105: 1.521768413 | R105: 0.1110025417 | S105: -1.398509652 | T105: -0.319583706 | U105: 0.1503496935 | V105: -0.7235046392 | W105: 0.07608842063 | X105: 0.005550127087 | Y105: 0.1558998206 | AA105: 0.00395502118 | AB105: 0.0009022874791 | AC105: 8.562133481e-05 | AD105: 0.01944759167 | AE105: 0.0004146857412 | AF105: -0.0001357318222
E106: 0.2015522059 | F106: -1.396285158 | G106: -0.3233640346 | H106: 0.1496019813 | I106: -0.7630813306 | J106: 0.0741249677 | K106: 0.005839908142 | M106: -1.326097425 | N106: -0.3070987495 | O106: 0.1425613968 | P106: -14.87632104 | Q106: 1.491589321 | R106: 0.1141014038 | S106: -1.392402297 | T106: -0.322453687 | U106: 0.1496894666 | V106: -0.7438160519 | W106: 0.07457946605 | X106: 0.00570507019 | Y106: 0.1553945368 | AA106: 0.003882861828 | AB106: 0.0009103476167 | AC106: 8.748534291e-05 | AD106: 0.01926527867 | AE106: 0.0004544983414 | AF106: -0.0001348379524
E107: 0.2036088611 | F107: -1.39005052 | G107: -0.3262293099 | H107: 0.1489339843 | I107: -0.7827886964 | J107: 0.0725352337 | K107: 0.005990729819 | M107: -1.320229621 | N107: -0.3098200494 | O107: 0.1419270001 | P107: -15.27447367 | Q107: 1.460583024 | R107: 0.1171373444 | S107: -1.386241102 | T107: -0.3253110519 | U107: 0.1490233501 | V107: -0.7637236837 | W107: 0.07302915121 | X107: 0.005856867219 | Y107: 0.1548802173 | AA107: 0.003809417714 | AB107: 0.000918258014 | AC107: 8.936577442e-05 | AD107: 0.01906501266 | AE107: 0.0004939175106 | AF107: -0.0001338626
E108: 0.2056655163 | F108: -1.383761005 | G108: -0.3290817061 | H108: 0.1482601077 | I108: -0.8020634364 | J108: 0.07090541147 | K108: 0.006138240585 | M108: -1.314310709 | N108: -0.3125292286 | O108: 0.1412870191 | P108: -15.66433116 | Q108: 1.428766358 | R108: 0.1201086795 | S108: -1.380026244 | T108: -0.32815569 | U108: 0.14835137 | V108: -0.7832165578 | W108: 0.07143831788 | X108: 0.006005433973 | Y108: 0.154356804 | AA108: 0.003734760796 | AB108: 0.0009260161026 | AC108: 9.126231868e-05 | AD108: 0.01884687868 | AE108: 0.0005329064131 | AF108: -0.0001328066122
E109: 0.2077221714 | F109: -1.377416862 | G109: -0.3319211108 | H109: 0.147580378 | I109: -0.8208948982 | J109: 0.06923640178 | K109: 0.006282358915 | M109: -1.308340855 | N109: -0.3152261823 | O109: 0.1406414788 | P109: -16.04567871 | Q109: 1.396156603 | R109: 0.1230137601 | S109: -1.373757898 | T109: -0.3309874914 | U109: 0.1476735527 | V109: -0.8022839357 | W109: 0.06980783017 | X109: 0.006150688003 | Y109: 0.1538242407 | AA109: 0.003658963576 | AB109: 0.0009336194625 | AC109: 9.317465995e-05 | AD109: 0.01861096246 | AE109: 0.0005714283885 | AF109: -0.0001316709114
E110: 0.2097788266 | F110: -1.37101834 | G110: -0.3347474119 | H110: 0.1468948221 | I110: -0.839272674 | J110: 0.06752912704 | K110: 0.006423005158 | M110: -1.30232023 | N110: -0.3179108058 | O110: 0.1399904044 | P110: -16.41830645 | Q110: 1.36277148 | R110: 0.1258509732 | S110: -1.367436241 | T110: -0.333806346 | U110: 0.1469899246 | V110: -0.8209153224 | W110: 0.06813857399 | X110: 0.006292548662 | Y110: 0.1532824733 | AA110: 0.003582098931 | AB110: 0.0009410658235 | AC110: 9.510247764e-05 | AD110: 0.01835735161 | AE110: 0.0006094469546 | AF110: -0.0001304564957
E111: 0.2118354817 | F111: -1.364565693 | G111: -0.3375604976 | H111: 0.1462034671 | I111: -0.857186607 | J111: 0.06578453082 | K111: 0.006560101584 | M111: -1.296249003 | N111: -0.3205829948 | O111: 0.1393338215 | P111: -16.7820094 | Q111: 1.328629133 | R111: 0.1286187429 | S111: -1.361061453 | T111: -0.3366121446 | U111: 0.1463005125 | V111: -0.8391004702 | W111: 0.06643145663 | X111: 0.006430937146 | Y111: 0.1527314497 | AA111: 0.003504239959 | AB111: 0.0009483530654 | AC111: 9.704544665e-05 | AD111: 0.01808613681 | AE111: 0.0006469258123 | AF111: -0.0001291644377
E112: 0.2138921369 | F112: -1.358059175 | G112: -0.3403602571 | H112: 0.1455063402 | I112: -0.8746267966 | J112: 0.0640035773 | K112: 0.006693572423 | M112: -1.290127348 | N112: -0.3232426456 | O112: 0.1386717557 | P112: -17.13658767 | Q112: 1.293748123 | R112: 0.1313155308 | S112: -1.354633715 | T112: -0.3394047779 | U112: 0.1456053434 | V112: -0.8568293834 | W112: 0.06468740615 | X112: 0.006565776538 | Y112: 0.15217112 | AA112: 0.003425459816 | AB112: 0.0009554792185 | AC112: 9.900323767e-05 | AD112: 0.01779741317 | AE112: 0.0006838288531 | AF112: -0.0001277958846
E113: 0.2159487921 | F113: -1.351499044 | G113: -0.3431465797 | H113: 0.144803469 | I113: -0.8915836041 | J113: 0.06218725077 | K113: 0.006823343909 | M113: -1.28395544 | N113: -0.3258896545 | O113: 0.1380042328 | P113: -17.48184645 | Q113: 1.258147419 | R113: 0.133939837 | S113: -1.348153212 | T113: -0.3421841372 | U113: 0.1449044445 | V113: -0.8740923224 | W113: 0.06290737094 | X113: 0.006696991851 | Y113: 0.1516014363 | AA113: 0.003345831566 | AB113: 0.0009624424633 | AC113: 0.0001009755175 | AD113: 0.01749128165 | AE113: 0.0007201201702 | AF113: -0.0001263520575
E114: 0.2180054472 | F114: -1.344885557 | G114: -0.3459193555 | H114: 0.1440948811 | I114: -0.908047658 | J114: 0.06033655507 | K114: 0.006949344321 | M114: -1.277733456 | N114: -0.3285239184 | O114: 0.1373312791 | P114: -17.81759615 | Q114: 1.221846383 | R114: 0.1364902014 | S114: -1.341620129 | T114: -0.3449501143 | U114: 0.1441978431 | V114: -0.8908798074 | W114: 0.06109231914 | X114: 0.00682451007 | Y114: 0.1510223531 | AA114: 0.00326542802 | AB114: 0.0009692411306 | AC114: 0.0001029619494 | AD114: 0.01716785061 | AE114: 0.0007557640715 | AF114: -0.0001248342514
E115: 0.2200621024 | F115: -1.338218977 | G115: -0.348678475 | H115: 0.1433806047 | I115: -0.924009859 | J115: 0.05845251302 | K115: 0.007071504023 | M115: -1.271461576 | N115: -0.3311453345 | O115: 0.1366529208 | P115: -18.14365243 | Q115: 1.184864762 | R115: 0.1389652038 | S115: -1.335034655 | T115: -0.3477026013 | U115: 0.1434855669 | V115: -0.9071826216 | W115: 0.05924323812 | X115: 0.006948260189 | Y115: 0.150433827 | AA115: 0.003184321596 | AB115: 0.0009758737003 | AC115: 0.0001049621932 | AD115: 0.01682723733 | AE115: 0.0007907250969 | AF115: -0.0001232438342
E116: 0.2221187576 | F116: -1.331499566 | G116: -0.3514238292 | H116: 0.1426606678 | I116: -0.9394613852 | J116: 0.05653616588 | K116: 0.007189755499 | M116: -1.265139983 | N116: -0.3337538004 | O116: 0.1359691845 | P116: -18.45983631 | Q116: 1.147222678 | R116: 0.1413634651 | S116: -1.328396982 | T116: -0.3504414904 | U116: 0.1427676437 | V116: -0.9229918156 | W116: 0.05736113392 | X116: 0.007068173253 | Y116: 0.1498358169 | AA116: 0.003102584164 | AB116: 0.000982338801 | AC116: 0.000106975906 | AD116: 0.01646956968 | AE116: 0.0008249680379 | AF116: -0.0001215822466
E117: 0.2241754127 | F117: -1.32472759 | G117: -0.3541553098 | H117: 0.1419350989 | I117: -0.9543936971 | J117: 0.05458857276 | K117: 0.007304033396 | M117: -1.25876886 | N117: -0.3363492139 | O117: 0.1352800968 | P117: -18.76597419 | Q117: 1.108940614 | R117: 0.1436836479 | S117: -1.321707303 | T117: -0.3531666746 | U117: 0.1420441016 | V117: -0.9382987093 | W117: 0.05544703072 | X117: 0.007184182395 | Y117: 0.149228284 | AA117: 0.003020286911 | AB117: 0.0009886352081 | AC117: 0.0001090027419 | AD117: 0.01609498783 | AE117: 0.0008584579614 | AF117: -0.0001198510015
E118: 0.2262320679 | F118: -1.317903316 | G118: -0.356872809 | H118: 0.1412039267 | I118: -0.968798542 | J118: 0.05261081004 | K118: 0.007414274556 | M118: -1.252348396 | N118: -0.3389314735 | O118: 0.1345856848 | P118: -19.06189792 | Q118: 1.070039406 | R118: 0.1459244575 | S118: -1.314965815 | T118: -0.3558780472 | U118: 0.141314969 | V118: -0.9530948961 | W118: 0.05350197028 | X118: 0.007296222873 | Y118: 0.1486111919 | AA118: 0.002937500196 | AB118: 0.0009947618429 | AC118: 0.000111042353 | AD118: 0.01570364592 | AE118: 0.0008911602368 | AF118: -0.0001180516832
E119: 0.228288723 | F119: -1.311027013 | G119: -0.3595762195 | H119: 0.14046718 | I119: -0.9826679586 | J119: 0.05060397078 | K119: 0.007520418051 | M119: -1.24587878 | N119: -0.3415004778 | O119: 0.1338859756 | P119: -19.3474449 | Q119: 1.030540227 | R119: 0.1480846421 | S119: -1.308172719 | T119: -0.3585755017 | U119: 0.1405802743 | V119: -0.9673722448 | W119: 0.05152701135 | X119: 0.007404232104 | Y119: 0.1479845064 | AA119: 0.002854293423 | AB119: 0.00100071777 | AC119: 0.0001130943891 | AD119: 0.01529571387 | AE119: 0.0009230405663 | AF119: -0.0001161859469
E120: 0.2303453782 | F120: -1.304098953 | G120: -0.3622654345 | H120: 0.1397248878 | I120: -0.9959942818 | J120: 0.04856916411 | K120: 0.007622405218 | M120: -1.239360208 | N120: -0.344056126 | O120: 0.1331809965 | P120: -19.62245805 | Q120: 0.9904645825 | R120: 0.150162994 | S120: -1.301328218 | T120: -0.3612589323 | U120: 0.1398400463 | V120: -0.9811229027 | W120: 0.04952322913 | X120: 0.0075081497 | Y120: 0.147348196 | AA120: 0.002770734911 | AB120: 0.001006502196 | AC120: 0.0001151584982 | AD120: 0.01487137909 | AE120: 0.0009540650192 | AF120: -0.0001142555182
E121: 0.2324020334 | F121: -1.29711941 | G121: -0.3649403479 | H121: 0.1389770796 | I121: -1.008770146 | J121: 0.04650751459 | K121: 0.007720179693 | M121: -1.232792874 | N121: -0.3465983175 | O121: 0.1324707752 | P121: -19.88678596 | Q121: 0.9498342933 | R121: 0.15215835 | S121: -1.294432518 | T121: -0.3639282334 | U121: 0.1390943139 | V121: -0.9943392982 | W121: 0.04749171466 | X121: 0.007607917501 | Y121: 0.1467022314 | AA121: 0.002686891766 | AB121: 0.001012114468 | AC121: 0.0001172343269 | AD121: 0.01443084829 | AE121: 0.0009842000698 | AF121: -0.0001122621917
E122: 0.2344586885 | F122: -1.290088658 | G122: -0.367600854 | H122: 0.1382237848 | I122: -1.020988492 | J122: 0.04442016166 | K122: 0.007813687437 | M122: -1.226176979 | N122: -0.3491269524 | O122: 0.1317553394 | P122: -20.14028285 | Q122: 0.908671486 | R122: 0.1540695921 | S122: -1.287485828 | T122: -0.3665833 | U122: 0.1383431063 | V122: -1.007014143 | W122: 0.0454335743 | X122: 0.007703479606 | Y122: 0.1460465859 | AA122: 0.00260282977 | AB122: 0.001017554066 | AC122: 0.0001193215207 | AD122: 0.01397434918 | AE122: 0.001013412639 | AF122: -0.0001102078308
E123: 0.2365153437 | F123: -1.283006976 | G123: -0.370246848 | H123: 0.1374650332 | I123: -1.032642565 | J123: 0.04230825893 | K123: 0.007902876772 | M123: -1.219512727 | N123: -0.3516419308 | O123: 0.131034717 | P123: -20.38280865 | Q123: 0.8669985815 | R123: 0.1558956481 | S123: -1.280488363 | T123: -0.3692240273 | U123: 0.1375864529 | V123: -1.019140433 | W123: 0.04334992907 | X123: 0.007794782405 | Y123: 0.1453812353 | AA123: 0.002518613265 | AB123: 0.001022820608 | AC123: 0.0001214197239 | AD123: 0.01350213227 | AE123: 0.001041670139 | AF123: -0.0001080943663
E124: 0.2385719989 | F124: -1.275874643 | G124: -0.3728782252 | H124: 0.1367008546 | I124: -1.043725925 | J124: 0.0401729736 | K124: 0.007987698405 | M124: -1.212800322 | N124: -0.3541431536 | O124: 0.1303089364 | P124: -20.61422905 | Q124: 0.8248382824 | R124: 0.1576354922 | S124: -1.273440338 | T124: -0.3718503113 | U124: 0.1368243832 | V124: -1.030711452 | W124: 0.04124191412 | X124: 0.007881774609 | Y124: 0.1447061578 | AA124: 0.002434305045 | AB124: 0.001027913841 | AC124: 0.0001235285805 | AD124: 0.0130144725 | AE124: 0.001068940522 | AF124: -0.0001059237955
E125: 0.240628654 | F125: -1.268691941 | G125: -0.3754948818 | H125: 0.1359312794 | I125: -1.054232446 | J125: 0.03801548577 | K125: 0.008068105458 | M125: -1.206039976 | N125: -0.356630522 | O125: 0.1295780258 | P125: -20.83441551 | Q125: 0.7822135621 | R125: 0.1592881455 | S125: -1.266341975 | T125: -0.3744620481 | U125: 0.1360569271 | V125: -1.041720776 | W125: 0.0391106781 | X125: 0.007964407277 | Y125: 0.1440213344 | AA125: 0.002349966261 | AB125: 0.00103283364 | AC125: 0.0001256477337 | AD125: 0.0125116709 | AE125: 0.001095192333 | AF125: -0.000103698181
E126: 0.2426853092 | F126: -1.261459153 | G126: -0.3780967145 | H126: 0.1351563378 | I126: -1.064156323 | J126: 0.03583698783 | K126: 0.008144053491 | M126: -1.199231902 | N126: -0.3591039376 | O126: 0.128842014 | P126: -21.04324533 | Q126: 0.7391476519 | R126: 0.1608526768 | S126: -1.259193497 | T126: -0.3770591345 | U126: 0.1352841147 | V126: -1.052162267 | W126: 0.03695738259 | X126: 0.008042633842 | Y126: 0.1433267485 | AA126: 0.002265656321 | AB126: 0.001037580002 | AC126: 0.0001277768269 | AD126: 0.01199405621 | AE126: 0.001120394762 | AF126: -0.0001014196494
E127: 0.2447419643 | F127: -1.254176565 | G127: -0.3806836206 | H127: 0.1343760605 | I127: -1.073492069 | J127: 0.03363868378 | K127: 0.008215500531 | M127: -1.192376316 | N127: -0.3615633024 | O127: 0.1281009295 | P127: -21.24060166 | Q127: 0.6956640298 | R127: 0.1623282028 | S127: -1.251995132 | T127: -0.3796414675 | U127: 0.134505976 | V127: -1.062030083 | W127: 0.03478320149 | X127: 0.008116410141 | Y127: 0.1426223862 | AA127: 0.002181432806 | AB127: 0.001042153047 | AC127: 0.0001299155034 | AD127: 0.01146198635 | AE127: 0.001144517708 | AF127: -9.909039012e-05
E128: 0.2467986195 | F128: -1.246844464 | G128: -0.383255498 | H128: 0.1335904783 | I128: -1.082234527 | J128: 0.03142178856 | K128: 0.008282407091 | M128: -1.18547344 | N128: -0.364008519 | O128: 0.1273548016 | P128: -21.42637353 | Q128: 0.6517864079 | R128: 0.1637138888 | S128: -1.244747112 | T128: -0.3822089449 | U128: 0.1337225417 | V128: -1.071318677 | W128: 0.03258932039 | X128: 0.008185694438 | Y128: 0.1419082361 | AA128: 0.00209735139 | AB128: 0.001046553009 | AC128: 0.0001320634071 | AD128: 0.01091584988 | AE128: 0.001167531836 | AF128: -9.671265348e-05
E129: 0.2488552747 | F129: -1.23946314 | G129: -0.385812245 | H129: 0.1327996221 | I129: -1.090378863 | J129: 0.02918752738 | K129: 0.008344736193 | M129: -1.178523499 | N129: -0.3664394903 | O129: 0.1266036593 | P129: -21.60045591 | Q129: 0.6075387204 | R129: 0.1650089489 | S129: -1.237449674 | T129: -0.3847614648 | U129: 0.1329338423 | V129: -1.080022795 | W129: 0.03037693602 | X129: 0.008250447444 | Y129: 0.1411842897 | AA129: 0.002013465762 | AB129: 0.001050780238 | AC129: 0.0001342201823 | AD129: 0.01035606729 | AE129: 0.001189408641 | AF129: -9.428874944e-05
E130: 0.2509119298 | F130: -1.232032883 | G130: -0.3883537609 | H130: 0.1320035232 | I130: -1.097920576 | J130: 0.02693713506 | K130: 0.00840245339 | M130: -1.17152672 | N130: -0.3688561198 | O130: 0.1258475321 | P130: -21.76274968 | Q130: 0.5629451116 | R130: 0.1662126469 | S130: -1.230103056 | T130: -0.3872989257 | U130: 0.1321399087 | V130: -1.088137484 | W130: 0.02814725558 | X130: 0.008310632344 | Y130: 0.140450541 | AA130: 0.00192982756 | AB130: 0.001054835189 | AC130: 0.0001363854742 | AD130: 0.009783092306 | AE130: 0.001210120521 | AF130: -9.182104562e-05
E131: 0.252968585 | F131: -1.224553989 | G131: -0.3908799453 | H131: 0.1312022131 | I131: -1.1048555 | J131: 0.02467185533 | K131: 0.008455526783 | M131: -1.164483336 | N131: -0.3712583113 | O131: 0.1250864495 | P131: -21.91316173 | Q131: 0.5180299234 | R131: 0.1673242963 | S131: -1.222707502 | T131: -0.3898212269 | U131: 0.131340772 | V131: -1.095658087 | W131: 0.02590149617 | X131: 0.008366214817 | Y131: 0.1397069868 | AA131: =S131-F131 -> 0.001846486314 | AB131: 0.001058718421 | AC131: 0.0001385589291 | AD131: 0.009197412905 | AE131: 0.001229640837 | AF131: -8.931196544e-05
E132: 0.2550252402 | F132: -1.217026751 | G132: -0.3933906984 | H132: 0.1303957233 | I132: -1.1111798 | J132: 0.02239294015 | K132: 0.008503927039 | M132: -1.157393582 | N132: -0.3736459693 | O132: 0.1243204414 | P132: -22.05160495 | Q132: 0.4728176828 | R132: 0.1683432611 | S132: -1.215263261 | T132: -0.3923282678 | U132: 0.1305364635 | V132: -1.102580247 | W132: 0.02364088414 | X132: 0.008417163053 | Y132: 0.1389536265 | AA132: 0.001763489386 | AB132: 0.001062430596 | AC132: 0.0001407401944 | AD132: 0.008599552366 | AE132: 0.001247943994 | AF132: -8.676398603e-05
E133: 0.2570818953 | F133: -1.209451466 | G133: -0.395885921 | H133: 0.1295840857 | I133: -1.116889982 | J133: 0.02010164901 | K133: 0.00854762741 | M133: -1.1502577 | N133: -0.3760189986 | O133: 0.1235495377 | P133: -22.17799823 | Q133: 0.4273330903 | R133: 0.1692689555 | S133: -1.207770585 | T133: -0.3948199486 | U133: 0.1297270146 | V133: -1.108899911 | W133: 0.02136665451 | X133: 0.008463447774 | Y133: 0.1381904624 | AA133: 0.001680881928 | AB133: 0.001065972468 | AC133: 0.0001429289191 | AD133: 0.007990070091 | AE133: 0.001265005508 | AF133: -8.417963604e-05
E134: 0.2591385505 | F134: -1.201828435 | G134: -0.3983655148 | H134: 0.1287673324 | I134: -1.121982889 | J134: 0.01779924824 | K134: 0.008586603743 | M134: -1.143075932 | N134: -0.3783773047 | O134: 0.1227737687 | P134: -22.29226654 | Q134: 0.3816010064 | R134: 0.170100845 | S134: -1.200229728 | T134: -0.3972961699 | U134: 0.1289124571 | V134: -1.114613327 | W134: 0.01908005032 | X134: 0.00850504225 | Y134: 0.1374174994 | AA134: 0.001598706842 | AB134: 0.001069344881 | AC134: 0.0001451247538 | AD134: 0.007369562309 | AE134: 0.001280802084 | AF134: -8.156149328e-05
E135: 0.2611952056 | F135: -1.194157958 | G135: -0.4008293818 | H135: 0.1279454955 | I135: -1.126455708 | J135: 0.01548701031 | K135: 0.008620834497 | M135: -1.135848527 | N135: -0.3807207934 | O135: 0.1219931646 | P135: -22.3943409 | Q135: 0.3356464401 | R135: 0.1708384463 | S135: -1.192640953 | T135: -0.3997568331 | U135: 0.1280928228 | V135: -1.119717045 | W135: 0.016782322 | X135: 0.008541922315 | Y135: 0.1366347452 | AA135: 0.001517004744 | AB135: 0.001072548769 | AC135: 0.0001473273509 | AD135: 0.006738662626 | AE135: 0.001295311691 | AF135: -7.891218215e-05
E136: 0.2632518608 | F136: =-$C$27*$C$26^2*COS($C$26*$E136+$C$28) -> -1.186440337 | G136: =-$C$27*$C$26*SIN($C$26*$E136+$C$28) -> -0.4032774248 | H136: =$C$27*COS($C$26*$E136+$C$28) -> 0.1271186076 | I136: -1.130305965 | J136: 0.01316621315 | K136: 0.008650300755 | M136: -1.128575737 | N136: -0.3830493711 | O136: 0.1212077561 | P136: -22.48415846 | Q136: 0.2894945358 | R136: 0.1714813277 | S136: -1.185004523 | T136: -0.4022018396 | U136: 0.1272681439 | V136: -1.124207923 | W136: 0.01447472679 | X136: 0.008574066384 | Y136: 0.1358422103 | AA136: 0.001435813945 | AB136: 0.001075585143 | AC136: 0.0001495363649 | AD136: 0.006098042405 | AE136: 0.001308513641 | AF136: -7.623437103e-05
E137: =E136+$C$9 -> 0.265308516 | F137: -1.178675878 | G137: -0.405709547 | H137: 0.1262867012 | I137: =-$C$37*$C$36^2*COS($C$36*$E137+$C$38) -> -1.133531534 | J137: =-$C$37*$C$36*SIN($C$36*$E137+$C$38) -> 0.01083813938 | K137: =$C$37*COS($C$36*$E137+$C$38) -> 0.008674986229 | M137: -1.121257817 | N137: -0.3853629447 | O137: 0.120417574 | P137: -22.56166246 | Q137: 0.2431705609 | R137: 0.1720291092 | S137: -1.177320708 | T137: -0.4046310919 | U137: 0.1264384527 | V137: -1.128083123 | W137: 0.01215852805 | X137: 0.00860145546 | Y137: 0.1350399081 | AA137: 0.001355170423 | AB137: 0.001078455093 | AC137: 0.0001517514523 | AD137: 0.005448410993 | AE137: 0.001320388665 | AF137: -7.353076938e-05
E138: 0.2673651711 | F138: -1.170864887 | G138: -0.4081256525 | H138: 0.1254498093 | I138: -1.136130631 | J138: 0.008504075672 | K138: 0.008694877279 | M138: -1.113895027 | N138: -0.3876614217 | O138: 0.1196226491 | P138: -22.62680231 | Q138: 0.1966998933 | R138: 0.1724814631 | S138: -1.169589779 | T138: -0.4070444927 | U138: 0.1256037815 | V138: -1.131340115 | W138: 0.009834994664 | X138: 0.008624073154 | Y138: =U138+X138 -> 0.1342278547 | AA138: 0.001275107823 | AB138: 0.001081159778 | AC138: 0.0001539722721 | AD138: 0.004790515754 | AE138: 0.001330918992 | AF138: -7.080412476e-05
E139: 0.2694218263 | F139: -1.163007671 | G139: -0.4105256459 | H139: 0.1246079648 | I139: -1.13810182 | J139: 0.006165311996 | K139: 0.00870996291 | M139: -1.106487632 | N139: -0.38994471 | O139: 0.1188230127 | P139: -22.67953356 | Q139: 0.1501080085 | R139: 0.1728381138 | S139: -1.161812014 | T139: -0.4094419455 | U139: 0.1247641633 | V139: -1.133976678 | W139: 0.007505400423 | X139: 0.00864190569 | Y139: 0.133406069 | AA139: 0.001195657441 | AB139: 0.001083700427 | AC139: 0.0001561984856 | AD139: 0.004125141941 | AE139: 0.001340088427 | AF139: -6.805721969e-05
E140: 0.2714784815 | F140: -1.155104543 | G140: -0.4129094325 | H140: 0.123761201 | I140: -1.139444012 | J140: 0.003823140923 | K140: 0.008720234784 | M140: -1.0990359 | N140: -0.3922127183 | O140: 0.118018696 | P140: -22.71981799 | Q140: 0.103420467 | R140: 0.1730988383 | S140: -1.153987695 | T140: -0.4118233542 | U140: 0.1239196308 | V140: -1.135990899 | W140: 0.005171023352 | X140: 0.008654941916 | Y140: 0.1325745727 | AA140: 0.001116848235 | AB140: 0.001086078328 | AC140: 0.0001584297567 | AD140: 0.003453112372 | AE140: 0.001347882429 | AF140: -6.529286829e-05
E141: 0.2735351366 | F141: -1.147155813 | G141: -0.4152769181 | H141: 0.1229095513 | I141: -1.140156464 | J141: 0.001478856905 | K141: 0.008725687226 | M141: -1.091540101 | N141: -0.3944653555 | O141: 0.1172097306 | P141: -22.74762355 | Q141: 0.05666290184 | R141: 0.1732634663 | S141: -1.146117106 | T141: -0.4141886233 | U141: 0.1230702171 | V141: -1.137381177 | W141: 0.002833145092 | X141: 0.008663173313 | Y141: 0.1317333904 | AA141: 0.001038706826 | AB141: 0.001088294828 | AC141: 0.0001606657521 | AD141: 0.002775286921 | AE141: 0.001354288187 | AF141: -6.251391282e-05
E142: 0.2755917918 | F142: -1.139161795 | G142: -0.4176280093 | H142: 0.1220530494 | I142: -1.140238784 | J142: -0.0008662444369 | K142: 0.008726317221 | M142: -1.084000511 | N142: -0.3967025314 | O142: 0.1163961481 | P142: -22.76292444 | Q142: 0.009861005211 | R142: 0.17333188 | S142: -1.138200537 | T142: -0.416537658 | U142: 0.1222159556 | V142: -1.138146222 | W142: 0.0004930502605 | X142: 0.008666594001 | Y142: 0.1308825496 | AA142: 0.0009612575199 | AB142: 0.001090351326 | AC142: 0.0001629061414 | AD142: 0.002092561825 | AE142: 0.001359294697 | AF142: -5.972322007e-05
E143: 0.2776484469 | F143: -1.131122804 | G143: -0.4199626133 | H143: 0.121191729 | I143: -1.139690924 | J143: -0.003210867029 | K143: 0.008722124422 | M143: -1.076417411 | N143: -0.3989241562 | O143: 0.1155779806 | P143: -22.76570111 | Q143: -0.03695948389 | R143: 0.1733040149 | S143: -1.130238282 | T143: -0.418870364 | U143: 0.1213568796 | V143: -1.138285056 | W143: -0.001847974195 | X143: 0.008665200745 | Y143: 0.1300220804 | AA143: 0.0008845223247 | AB143: 0.001092249268 | AC143: 0.0001651505968 | AD143: 0.001405868789 | AE143: 0.001362892834 | AF143: -5.692367751e-05
E144: 0.2797051021 | F144: -1.123039159 | G144: -0.4222806378 | H144: 0.1203256242 | I144: -1.13851319 | J144: -0.005553715064 | K144: 0.008713111145 | M144: -1.068791084 | N144: -0.4011301406 | O144: 0.11475526 | P144: -22.75594032 | Q144: -0.08377279277 | R144: 0.1731798591 | S144: -1.122230638 | T144: -0.4211866477 | U144: 0.120493023 | V144: -1.137797016 | W144: -0.004188639638 | X144: 0.008658992956 | Y144: 0.129152016 | AA144: 0.0008085209799 | AB144: 0.001093990144 | AC144: 0.0001673987939 | AD144: 0.0007161739047 | AE144: 0.001365075425 | AF144: -5.41181894e-05
E145: 0.2817617573 | F145: -1.114911179 | G145: -0.4245819914 | H145: 0.1194547692 | I145: -1.13670623 | J145: -0.007893493713 | K145: 0.008699282373 | M145: -1.061121817 | N145: -0.4033203962 | O145: 0.1139280186 | P145: -22.73363507 | Q145: -0.1305531279 | R145: 0.172959454 | S145: -1.114177908 | T145: -0.423486416 | U145: 0.1196244196 | V145: -1.136681754 | W145: -0.006527656395 | X145: 0.0086479727 | Y145: 0.1282723923 | AA145: 0.0007332709902 | AB145: 0.001095575481 | AC145: 0.0001696504112 | AD145: 2.447637822e-05 | AE145: 0.001365837318 | AF145: -5.130967268e-05
E146: 0.2838184124 | F146: -1.106739183 | G146: -0.4268665833 | H146: 0.1185791982 | I146: -1.134271044 | J146: -0.01022890985 | K146: 0.008680645747 | M146: -1.053409901 | N146: -0.4054948347 | O146: 0.1130962889 | P146: -22.69878474 | Q146: -0.177274688 | R146: 0.1726428939 | S146: -1.106080396 | T146: -0.4257695765 | U146: 0.1187511034 | V146: -1.134939237 | W146: -0.008863734398 | X146: 0.008632144694 | Y146: 0.1273832481 | AA146: 0.0006587876646 | AB146: 0.001097006841 | AC146: 0.0001719051303 | AD146: -0.0006681929393 | AE146: 0.001365175449 | AF146: -4.850105274e-05
E147: 0.2858750676 | F147: -1.098523496 | G147: -0.4291343232 | H147: 0.117698946 | I147: -1.131208978 | J147: -0.01255867274 | K147: 0.008657211568 | M147: -1.04565563 | N147: -0.4076533689 | O147: 0.1122601035 | P147: -22.65139503 | Q147: -0.2239116768 | R147: 0.1722303262 | S147: -1.097938412 | T147: -0.4280360374 | U147: 0.1178731086 | V147: -1.132569751 | W147: -0.01119558384 | X147: 0.008611516309 | Y147: 0.1264846249 | AA147: 0.0005850841626 | AB147: 0.001098285814 | AC147: 0.0001741626363 | AD147: -0.001360773207 | AE147: 0.001363088906 | AF147: -4.569525909e-05
E148: 0.2879317228 | F148: -1.090264441 | G148: -0.4313851216 | H148: 0.1168140472 | I148: -1.127521724 | J148: -0.01488149481 | K148: 0.008628992787 | M148: -1.037859304 | N148: -0.409795912 | O148: 0.1114194951 | P148: -22.59147799 | Q148: -0.2704383165 | R148: 0.1717219513 | S148: -1.089752269 | T148: -0.4302857076 | U148: 0.1169904698 | V148: -1.1295739 | W148: -0.01352191582 | X148: 0.008586097566 | Y148: 0.1255765674 | AA148: 0.0005121715442 | AB148: 0.001099414016 | AC148: 0.0001764226173 | AD148: -0.002052175434 | AE148: 0.001359578986 | AF148: -4.289522085e-05
E149: 0.2899883779 | F149: -1.081962343 | G149: -0.4336188897 | H149: 0.1159245368 | I149: -1.12321132 | J149: -0.01719609228 | K149: 0.008596005 | M149: -1.030021223 | N149: -0.4119223777 | O149: 0.1105744967 | P149: -22.51905209 | Q149: -0.3168288606 | R149: 0.1711180228 | S149: -1.081522285 | T149: -0.4325184966 | U149: 0.1161032216 | V149: -1.125952605 | W149: -0.01584144303 | X149: 0.008555901138 | Y149: 0.1246591227 | AA149: 0.000440058826 | AB149: 0.001100393083 | AC149: 0.0001786847651 | AD149: -0.002741284507 | AE149: 0.001354649255 | AF149: -4.010386212e-05
E150: 0.2920450331 | F150: -1.073617532 | G150: -0.4358355392 | H150: 0.1150304499 | I150: -1.118280148 | J150: -0.01950118595 | K150: 0.008558266439 | M150: -1.022141694 | N150: -0.4140326805 | O150: 0.1097251416 | P150: -22.43414219 | Q150: -0.3630576072 | R150: 0.1704188468 | S150: -1.073248779 | T150: -0.4347343145 | U150: 0.1152113987 | V150: -1.121707109 | W150: -0.01815288036 | X150: 0.008520942341 | Y150: 0.123732341 | AA150: 0.0003687530423 | AB150: 0.001101224668 | AC150: 0.0001809487745 | AD150: -0.00342696139 | AE150: 0.001348305596 | AF150: -3.732409733e-05
E151: 0.2941016882 | F151: -1.065230336 | G151: -0.4380349827 | H151: 0.1141318218 | I151: -1.112730933 | J151: -0.02179550186 | K151: 0.008515797959 | M151: -1.014221026 | N151: -0.4161267355 | O151: 0.108871463 | P151: -22.33677958 | Q151: -0.4090989119 | R151: 0.1696247827 | S151: -1.064932077 | T151: -0.4369330723 | U151: 0.1143150361 | V151: -1.116838979 | W151: -0.0204549456 | X151: 0.008481239133 | Y151: 0.1227962752 | AA151: 0.0002982593104 | AB151: 0.001101910436 | AC151: 0.0001832143439 | AD151: -0.004108045497 | AE151: 0.001340556259 | AF151: -3.455882637e-05
E152: 0.2961583434 | F152: -1.056801087 | G152: -0.4402171333 | H152: 0.1132286879 | I152: -1.106566743 | J152: -0.02407777199 | K152: 0.008468623034 | M152: -1.00625953 | N152: -0.4182044583 | O152: 0.1080134944 | P152: -22.22700201 | Q152: -0.4549272017 | R152: 0.1687362421 | S152: =($C$14+$C$13)*M152 -> -1.056572506 | T152: -0.4391146813 | U152: 0.1134141691 | V152: =$C$13*P152 -> -1.1113501 | W152: -0.02274636009 | X152: 0.008436812104 | Y152: 0.1218509812 | AA152: 0.0002285809007 | AB152: 0.00110245206 | AC152: 0.0001854811753 | AD152: -0.004783357229 | AE152: 0.001331411899 | AF152: -3.181092968e-05
E153: 0.2982149986 | F153: -1.048330117 | G153: -0.4423819049 | H153: 0.112321084 | I153: -1.099790984 | J153: -0.026346735 | K153: 0.008416767734 | M153: -0.9982575219 | N153: -0.4202657654 | O153: 0.1071512695 | P153: -22.10485369 | Q153: -0.5005169876 | R153: 0.1677536894 | S153: -1.048170398 | T153: -0.4412790537 | U153: 0.112508833 | V153: -1.105242685 | W153: -0.02502584938 | X153: 0.008387684471 | Y153: 0.1208965174 | AA153: 0.0001597193108 | AB153: 0.00110285122 | AC153: 0.0001877489737 | AD153: -0.005451700672 | AE153: 0.001320885615 | AF153: -2.90832633e-05
E154: 0.3002716537 | F154: -1.039817761 | G154: -0.444529212 | H154: 0.1114090458 | I154: -1.092407401 | J154: -0.02860113689 | K154: 0.008360260719 | M154: -0.9902153207 | N154: -0.4223105738 | O154: 0.1062848222 | P154: -21.97038534 | Q154: -0.5458428783 | R154: 0.1666776413 | S154: -1.039726087 | T154: -0.4434261024 | U154: 0.1115990633 | V154: -1.098519267 | W154: -0.02729214391 | X154: 0.008333882066 | Y154: 0.1199329453 | AA154: 9.167434313e-05 | AB154: 0.001103109595 | AC154: 0.0001900174481 | AD154: -0.006111866433 | AE154: 0.00130899298 | AF154: -2.637865378e-05
E155: 0.3023283089 | F155: -1.031264355 | G155: -0.4466589699 | H155: 0.1104926094 | I155: -1.084420074 | J155: -0.03083973173 | K155: 0.008299133219 | M155: -0.9821332481 | N155: -0.424338801 | O155: 0.1054141864 | P155: -21.82365417 | Q155: -0.5908795933 | R155: 0.1655086665 | S155: -1.03123991 | T155: -0.445555741 | U155: 0.1106848957 | V155: -1.091182709 | W155: -0.02954397967 | X155: 0.008275433326 | Y155: 0.1189603291 | AA155: 2.444418696e-05 | AB155: 0.001103228863 | AC155: 0.0001922863105 | AD155: -0.006762634629 | AE155: 0.001295752065 | AF155: -2.369989309e-05
E156: 0.3043849641 | F156: -1.022670236 | G156: -0.4487710944 | H156: 0.109571811 | I156: -1.075833418 | J156: -0.0330612823 | K156: 0.008233419017 | M156: -0.9740116288 | N156: -0.4263503655 | O156: 0.1045393964 | P156: -21.66472393 | Q156: -0.6356019768 | R156: 0.1642473857 | S156: -1.02271221 | T156: -0.4476678837 | U156: 0.1097663662 | V156: -1.083236196 | W156: -0.03178009884 | X156: 0.008212369284 | Y156: 0.1179787355 | AA156: -4.197449731e-05 | AB156: 0.001103210698 | AC156: 0.0001945552766 | AD156: -0.007402777991 | AE156: 0.00128118346 | AF156: -2.104973343e-05
E157: 0.3064416192 | F157: -1.014035743 | G157: -0.4508655023 | H157: 0.1086466868 | I157: -1.066652179 | J157: -0.03526456081 | K157: 0.008163154432 | M157: -0.9658507904 | N157: -0.4283451862 | O157: 0.1036604865 | P157: -21.49366488 | Q157: -0.6799850106 | R157: 0.162894471 | S157: -1.01414333 | T157: -0.4497624455 | U157: 0.1088435109 | V157: -1.074683244 | W157: -0.03399925053 | X157: 0.00814472355 | Y157: 0.1169882344 | AA157: -0.0001075864903 | AB157: 0.001103056762 | AC157: 0.0001968240654 | AD157: -0.008031065098 | AE157: 0.001265310282 | AF157: -1.843088205e-05
E158: 0.3084982744 | F158: -1.005361219 | G158: -0.4529421107 | H158: 0.1077172734 | I158: -1.056881431 | J158: -0.03744834958 | K158: 0.008088378297 | M158: -0.9576510636 | N158: -0.4303231828 | O158: 0.1027774913 | P158: -21.31055389 | Q158: -0.7240038279 | R158: 0.161450646 | S158: -1.005533617 | T158: -0.451839342 | U158: 0.1079163658 | V158: -1.065527694 | W158: -0.0362001914 | X158: 0.008072532301 | Y158: 0.1159888981 | AA158: -0.0001723979235 | AB158: 0.00110276871 | AC158: 0.0001990923994 | AD158: -0.008646263704 | AE158: 0.001248158181 | AF158: -1.584599609e-05
E159: 0.3105549295 | F159: -0.9966470042 | G159: -0.4550008377 | H159: 0.1067836076 | I159: -1.046526573 | J159: -0.03961144167 | K159: 0.008009131938 | M159: -0.9494127814 | N159: -0.4322842758 | O159: 0.1018904453 | P159: -21.11547435 | Q159: -0.7676337266 | R159: 0.1599166852 | S159: -0.9968834204 | T159: -0.4538984896 | U159: 0.1069849676 | V159: -1.055773717 | W159: -0.03838168633 | X159: 0.007995834261 | Y159: 0.1149808019 | AA159: -0.0002364161866 | AB159: 0.00110234818 | AC159: 0.0002013600045 | AD159: -0.009247144176 | AE159: 0.001229755343 | AF159: -1.329767728e-05
E160: 0.3126115847 | F160: -0.9878934437 | G160: -0.4570416021 | H160: 0.1058457261 | I160: -1.035593329 | J160: -0.04175264161 | K160: 0.007925459153 | M160: -0.9411362796 | N160: -0.434228386 | O160: 0.1009993835 | P160: -20.90851625 | Q160: -0.8108501828 | R160: 0.1582934137 | S160: -0.9881930936 | T160: -0.4559398053 | U160: 0.1060493527 | V160: -1.045425812 | W160: -0.04054250914 | X160: 0.007914670686 | Y160: 0.1139640234 | AA160: -0.0002996498332 | AB160: 0.001101796795 | AC160: 0.0002036266099 | AD160: -0.009832482992 | AE160: 0.001210132474 | AF160: -1.078846683e-05
E161: 0.3146682399 | F161: -0.9791008829 | G161: -0.4590643233 | H161: 0.104903666 | I161: -1.024087742 | J161: -0.04387076603 | K161: 0.007837406186 | M161: -0.9328218966 | N161: -0.4361554354 | O161: 0.1001043409 | P161: -20.68977616 | Q161: -0.8536288648 | R161: 0.1565817069 | S161: -0.9794629914 | T161: -0.4579632071 | U161: 0.105109558 | V161: -1.034488808 | W161: -0.04268144324 | X161: 0.007829085346 | Y161: 0.1129386433 | AA161: -0.0003621084845 | AB161: 0.001101116159 | AC161: 0.0002058919481 | AD161: -0.01040106633 | AE161: 0.001189322787 | AF161: -8.320840182e-06
E162: 0.316724895 | F162: -0.9702696688 | G162: -0.4610689214 | H162: 0.1039574645 | I162: -1.012016169 | J162: -0.04596464428 | K162: 0.007745021701 | M162: -0.9244699729 | N162: -0.4380653462 | O162: 0.09920535264 | P162: -20.45935725 | Q162: -0.8959456459 | R162: 0.15478249 | S162: -0.9706934716 | T162: -0.4599686136 | U162: 0.1041656203 | V162: -1.022967863 | W162: -0.0447972823 | X162: 0.007739124499 | Y162: 0.1119047448 | AA162: -0.0004238027321 | AB162: 0.001100307855 | AC162: 0.0002081557549 | AD162: -0.01095169367 | AE162: 0.001167361981 | AF162: -5.897201929e-06
E163: 0.3187815502 | F163: -0.9614001502 | G163: -0.4630553173 | H163: 0.1030071589 | I163: -0.9993852828 | J163: -0.04803311914 | K163: 0.007648356756 | M163: -0.9160808517 | N163: -0.4399580418 | O163: 0.09830245402 | P163: -20.21736929 | Q163: -0.9377766187 | R163: 0.1528967375 | S163: -0.9618848942 | T163: -0.4619559439 | U163: 0.1032175767 | V163: -1.010868464 | W163: -0.04688883093 | X163: 0.007644836875 | Y163: 0.1108624136 | AA163: -0.0004847440396 | AB163: 0.001099373443 | AC163: 0.0002104177693 | AD163: -0.01148318152 | AE163: 0.001144288205 | AF163: -3.519880714e-06
E164: 0.3208382054 | F164: -0.9524926771 | G164: -0.4650234326 | H164: 0.1020527868 | I164: -0.986202064 | J164: -0.05007504742 | K164: 0.007547464775 | M164: -0.9076548779 | N164: -0.4418334458 | O164: 0.09739568054 | P164: -19.96392862 | Q164: -0.979098108 | R164: 0.150925473 | S164: -0.9530376218 | T164: -0.4639251181 | U164: 0.1022654646 | V164: -0.998196431 | W164: -0.0489549054 | X164: 0.007546273651 | Y164: 0.1098117382 | AA164: -0.0005449446437 | AB164: 0.00109831446 | AC164: 0.0002126777336 | AD164: -0.01199436705 | AE164: 0.001120142021 | AF164: -1.191124231e-06
E165: 0.3228948605 | F165: -0.9435476013 | G165: -0.4669731895 | H165: 0.1010943858 | I165: -0.9724737985 | J165: -0.05208930061 | K165: 0.007442401519 | M165: -0.8991923988 | N165: -0.4436914829 | O165: 0.09648506785 | P165: -19.69915821 | Q165: -1.019886685 | R165: 0.1488697685 | S165: -0.9441520187 | T165: -0.4658760571 | U165: 0.1013093212 | V165: -0.9849579103 | W165: -0.05099433424 | X165: 0.007443488425 | Y165: 0.1087528097 | AA165: -0.000604417455 | AB165: 0.001097132415 | AC165: 0.0002149353932 | AD165: -0.0124841118 | AE165: 0.001094966361 | AF165: 1.086905693e-06
E166: =E165+$C$9 -> 0.3249515157 | F166: -0.9345652758 | G166: -0.4689045111 | H166: 0.1001319938 | I166: -0.9582080736 | J166: -0.05407476547 | K166: 0.007333225053 | M166: -0.8906937635 | N166: -0.4455320784 | O166: 0.09557065174 | P166: -19.42318758 | Q166: -1.06011918 | R166: 0.1467307438 | S166: -0.9352284517 | T166: -0.4678086823 | U166: 0.1003491843 | V166: -0.9711593791 | W166: -0.05300595901 | X166: 0.007336537191 | Y166: 0.1076857215 | AA166: -0.0006631759586 | AB166: 0.001095828793 | AC166: 0.0002171904964 | AD166: -0.01295130542 | AE166: 0.001068806467 | AF166: 3.312137913e-06
E167: 0.3270081708 | F167: -0.9255460552 | G167: -0.4708173212 | H167: 0.09916564877 | I167: -0.9434127736 | J167: -0.05603034471 | K167: 0.007219995717 | M167: -0.8821593232 | N167: -0.4473551582 | O167: 0.09465246816 | P167: -19.13615286 | Q167: -1.099772698 | R167: 0.1445095663 | S167: -0.9262672893 | T167: -0.4697229161 | U167: 0.09938509157 | V167: -0.956807643 | W167: -0.05498863488 | X167: 0.007225478313 | Y167: 0.1066105699 | AA167: -0.0007212341158 | AB167: 0.001094405047 | AC167: 0.0002194427947 | AD167: -0.01339486932 | AE167: 0.001041709833 | AF167: 5.482596658e-06
E168: =E167+$C$9 -> 0.329064826 | F168: -0.9164902957 | G168: -0.4727115442 | H168: 0.09819538882 | I168: -0.9280960754 | J168: -0.05795495752 | K168: 0.007102776087 | M168: -0.8735894304 | N168: -0.4491606491 | O168: 0.09373055321 | P168: -18.83819671 | Q168: -1.138824628 | R168: 0.1422074499 | S168: -0.917268902 | T168: -0.4716186816 | U168: 0.09841708087 | V168: -0.9419098357 | W168: -0.05694123139 | X168: 0.007110372494 | Y168: 0.1055274534 | AA168: -0.0007786062661 | AB168: 0.001092862604 | AC168: 0.0002216920426 | AD168: -0.01381376026 | AE168: 0.001013726138 | AF168: 7.596406096e-06
E169: 0.3311214812 | F169: -0.9073983547 | G169: -0.4745871054 | H169: 0.09722125229 | I169: -0.9122664442 | J169: -0.05984754023 | K169: 0.00698163095 | M169: -0.8649844398 | N169: -0.4509484786 | O169: 0.09280494313 | P169: -18.52946836 | Q169: -1.177252661 | R169: 0.1398256549 | S169: -0.9082336617 | T169: -0.4734959025 | U169: 0.09744519029 | V169: -0.9264734182 | W169: -0.05886263307 | X169: 0.006991282745 | Y169: 0.104436473 | AA169: -0.0008353070297 | AB169: 0.001091202858 | AC169: 0.0002239379974 | AD169: -0.01420697403 | AE169: 0.0009849071643 | AF169: 9.651794743e-06
E170: 0.3331781363 | F170: -0.8982705912 | G170: -0.4764439307 | H170: 0.09624327763 | I170: -0.8959326284 | J170: -0.06170704686 | K170: 0.006856627258 | M170: -0.8563447071 | N170: -0.4527185748 | O170: 0.09187567433 | P170: -18.21012355 | Q170: -1.215034803 | R170: 0.1373654872 | S170: -0.8991619424 | T170: -0.4753545035 | U170: 0.09646945805 | V170: -0.9105061773 | W170: -0.06075174014 | X170: 0.006868274358 | Y170: 0.1033377324 | AA170: -0.0008913512126 | AB170: 0.001089427177 | AC170: 0.0002261804191 | AD170: -0.01457354887 | AE170: 0.0009553067181 | AF170: 1.164709971e-05
E171: 0.3352347915 | F171: -0.8891073655 | G171: -0.4782819468 | H171: 0.09526150345 | I171: -0.8791036554 | J171: -0.0635324497 | K171: 0.006727834098 | M171: -0.8476705897 | N171: -0.4544708665 | O171: 0.09094278335 | P171: -17.88032449 | Q171: -1.252149383 | R171: 0.1348282974 | S171: -0.8900541192 | T171: -0.4771944099 | U171: 0.09548992252 | V171: -0.8940162244 | W171: -0.06260746916 | X171: 0.006741414868 | Y171: 0.1022313374 | AA171: -0.0009467537124 | AB171: 0.001087536894 | AC171: 0.0002284190709 | AD171: -0.01491256895 | AE171: 0.0009249805362 | AF171: 1.358077077e-05
E172: 0.3372914467 | F172: -0.8799090394 | G172: -0.4801010811 | H172: 0.0942759685 | I172: -0.8617888261 | J172: -0.06532273991 | K172: 0.006595322649 | M172: -0.8389624465 | N172: -0.4562052836 | O172: 0.09000630688 | P172: -17.54023988 | Q172: -1.288575074 | R172: 0.1322154805 | S172: -0.8809105688 | T172: -0.4790155478 | U172: 0.09450662222 | V172: -0.8770119938 | W172: -0.06442875372 | X172: 0.006610774023 | Y172: 0.1011173962 | AA172: -0.001001529426 | AB172: 0.001085533315 | AC172: 0.0002306537182 | AD172: -0.01522316771 | AE172: 0.0008939861892 | AF172: 1.545137423e-05
E173: 0.3393481018 | F173: -0.8706759759 | G173: -0.4819012619 | H173: 0.09328671171 | I173: -0.8439977099 | J173: -0.06707692805 | K173: 0.006459166147 | M173: -0.8302206372 | N173: -0.4579217564 | O173: 0.08906628175 | P173: -17.19004482 | Q173: -1.324290902 | R173: 0.1295284749 | S173: -0.8717316691 | T173: -0.4808178442 | U173: 0.09351959584 | V173: -0.8595022409 | W173: -0.06621454508 | X173: 0.006476423744 | Y173: 0.09999601958 | AA173: -0.001055693163 | AB173: 0.001083417712 | AC173: 0.0002328841295 | AD173: =V173-I173 -> -0.01550453104 | AE173: 0.0008623829762 | AF173: 1.72575966e-05
E174: 0.341404757 | F174: -0.8614085397 | G174: -0.483682418 | H174: 0.09229377211 | I174: -0.8257401395 | J174: -0.06879404462 | K174: 0.006319439843 | M174: -0.8214455231 | N174: -0.4596202159 | O174: 0.08812274494 | P174: -16.8299208 | Q174: -1.359276256 | R174: 0.1267687618 | S174: -0.8625177992 | T174: -0.4826012267 | U174: 0.09252888218 | V174: -0.8414960399 | W174: -0.06796381281 | X174: 0.006338438091 | Y174: 0.09886732028 | AA174: =S174-F174 -> -0.001109259552 | AB174: 0.001081191331 | AC174: 0.0002351100756 | AD174: -0.01575590039 | AE174: 0.0008302318144 | AF174: 1.899824802e-05
E175: 0.3434614121 | F175: -0.8521070965 | G175: -0.4854444792 | H175: 0.09129718891 | I175: -0.8070262053 | J175: -0.07047314063 | K175: 0.006176220959 | M175: -0.8126374662 | N175: -0.4613005941 | O175: 0.08717573356 | P175: -16.46005562 | Q175: -1.39351091 | R175: 0.1239378645 | S175: -0.8532693395 | T175: -0.4843656238 | U175: 0.09153452024 | V175: -0.823002781 | W175: -0.06967554551 | X175: 0.006196893224 | Y175: 0.09773141347 | AA175: -0.001162242964 | AB175: 0.001078855383 | AC175: 0.0002373313299 | AD175: -0.0159765757 | AE175: 0.0007975951211 | AF175: 2.06722655e-05
E176: 0.3455180673 | F176: -0.8427720136 | G176: -0.4871873759 | H176: 0.09029700146 | I176: -0.78786625 | J176: -0.07211328807 | K176: 0.006029588648 | M176: -0.8037968296 | N176: -0.4629628236 | O176: 0.08622528488 | P176: -16.08064336 | Q176: -1.426975028 | R176: 0.1210373473 | S176: -0.843986671 | T176: -0.4861109648 | U176: 0.09053654913 | V176: -0.8040321682 | W176: -0.07134875138 | X176: 0.006051867364 | Y176: 0.09658841649 | AA176: -0.001214657429 | AB176: 0.001076411055 | AC176: 0.0002395476683 | AD176: -0.01616591822 | AE176: 0.000764536691 | AF176: 2.227871584e-05
E177: 0.3475747225 | F177: -0.8334036595 | G177: -0.4889110392 | H177: 0.08929324923 | I177: -0.7682708627 | J177: -0.07371358049 | K177: 0.00587962395 | M177: -0.7949239772 | N177: -0.4646068378 | O177: 0.08527143629 | P177: -15.69188432 | Q177: -1.459649178 | R177: 0.118068815 | S177: -0.8346701761 | T177: -0.4878371797 | U177: 0.0895350081 | V177: -0.7845942158 | W177: -0.07298245892 | X177: 0.005903440748 | Y177: 0.09543844885 | AA177: -0.001266516556 | AB177: 0.001073859501 | AC177: 0.0002417588691 | AD177: -0.01632335308 | AE177: 0.0007311215671 | AF177: 2.381679834e-05
E178: 0.3496313776 | F178: -0.8240024041 | G178: -0.4906154012 | H178: 0.08828597186 | I178: -0.7482508734 | J178: -0.07527313345 | K178: 0.005726409746 | M178: -0.7860192738 | N178: -0.4662325708 | O178: 0.08431422531 | P178: -15.2939849 | Q178: -1.491514351 | R178: 0.1150339119 | S178: -0.8253202375 | T178: -0.4895441994 | U178: 0.08852993658 | V178: -0.7646992452 | W178: -0.07457571754 | X178: 0.005751695593 | Y178: 0.09428163217 | AA178: -0.001317833462 | AB178: 0.001071201851 | AC178: 0.000243964713 | AD178: -0.01644837176 | AE178: 0.0006974159071 | AF178: 2.528584728e-05
E179: 0.3516880328 | F179: -0.8145686184 | G179: -0.4923003945 | H179: 0.08727520912 | I179: -0.7278173465 | J179: -0.07679108503 | K179: 0.005570030713 | M179: -0.7770830849 | N179: -0.4678399574 | O179: 0.08335368962 | P179: -14.88715762 | Q179: -1.522551964 | R179: 0.1119343209 | S179: -0.8159372391 | T179: -0.4912319553 | U179: 0.0875213741 | V179: -0.7443578808 | W179: -0.07612759818 | X179: 0.005596716047 | Y179: 0.09311809015 | AA179: -0.001368620702 | AB179: 0.001068439206 | AC179: 0.0002461649828 | AD179: -0.01654053431 | AE179: 0.000663486844 | AF179: 2.668533399e-05
E180: 0.353744688 | F180: -0.805102675 | G180: -0.4939659527 | H180: 0.08626100089 | I180: -0.706981575 | J180: -0.07826659629 | K180: 0.005410573278 | M180: -0.7681157764 | N180: -0.4694289334 | O180: 0.08238986701 | P180: -14.47162093 | Q180: -1.552743879 | R180: 0.1087717629 | S180: -0.8065215652 | T180: -0.49290038 | U180: 0.08650936036 | V180: -0.7235810464 | W180: -0.07763719395 | X180: 0.005438588147 | Y180: 0.0919479485 | AA180: -0.001418890199 | AB180: 0.001065572644 | AC180: 0.0002483594638 | AD180: -0.0165994714 | AE180: 0.0006294023438 | AF180: 2.801486878e-05
E181: 0.3558013431 | F181: -0.7956049475 | G181: -0.4956120099 | H181: 0.08524338723 | I181: -0.6857550743 | J181: -0.07969885177 | K181: 0.005248125569 | M181: -0.7591177149 | N181: -0.4709994349 | O181: 0.08142279541 | P181: -14.04759921 | Q181: -1.582072414 | R181: 0.1055479954 | S181: -0.7970736007 | T181: -0.4945494067 | U181: 0.08549393518 | V181: -0.7023799605 | W181: -0.07910362071 | X181: 0.005277399771 | Y181: 0.09077133495 | AA181: -0.001468653191 | AB181: 0.001062603218 | AC181: 0.0002505479433 | AD181: -0.01662488612 | AE181: 0.0005952310576 | AF181: 2.927420246e-05
E182: 0.3578579983 | F182: -0.7860758109 | G182: -0.4972385012 | H182: 0.08422240831 | I182: -0.6641495758 | J182: -0.08108705989 | K182: 0.005082777366 | M182: -0.7500892677 | N182: -0.4725513993 | O182: 0.08045251288 | P182: -13.61532263 | Q182: -1.610520354 | R182: 0.1022648119 | S182: -0.787593731 | T182: -0.4961789692 | U182: 0.08447513852 | V182: -0.6807661314 | W182: -0.08052601772 | X182: 0.005113240593 | Y182: 0.08958837911 | AA182: -0.001517920165 | AB182: 0.001059531958 | AC182: 0.0002527302108 | AD182: -0.01661655558 | AE182: 0.0005610421713 | AF182: 3.046322759e-05
E183: 0.3599146534 | F183: -0.7765156413 | G183: -0.4988453624 | H183: 0.08319810443 | I183: -0.6421770201 | J183: -0.08243045344 | K183: 0.004914620052 | M183: -0.741030802 | N183: -0.4740847643 | O183: 0.07947905761 | P183: -13.17502705 | Q183: -1.638070964 | R183: 0.09892404062 | S183: -0.7780823421 | T183: -0.4977890025 | U183: 0.08345301049 | V183: -0.6587513523 | W183: -0.08190354818 | X183: 0.004946202031 | Y183: 0.08839921252 | AA183: -0.001566700811 | AB183: 0.001056359875 | AC183: 0.0002549060579 | AD183: -0.01657433227 | AE183: 0.0005269052521 | AF183: 3.158197948e-05
E184: 0.3619713086 | F184: -0.7669248163 | G184: -0.50043253 | H184: 0.08217051603 | I184: -0.6198495509 | J184: -0.08372828994 | K184: 0.004743746563 | M184: -0.731942686 | N184: -0.4755994686 | O184: 0.07850246791 | P184: -12.72695392 | Q184: -1.664707997 | R184: 0.09552754399 | S184: -0.7685398203 | T184: -0.499379442 | U184: 0.08242759131 | V184: -0.636347696 | W184: -0.08323539985 | X184: 0.004776377199 | Y184: 0.08720396851 | AA184: -0.001615003972 | AB184: 0.001053087959 | AC184: 0.0002570752783 | AD184: -0.01649814517 | AE184: 0.0004928900919 | AF184: 3.263063674e-05
E185: 0.3640279638 | F185: -0.7573037143 | G185: -0.5019999414 | H185: 0.08113968368 | I185: -0.5971795079 | J185: -0.08497985214 | K185: 0.004570251336 | M185: -0.7228252876 | N185: -0.4770954516 | O185: 0.07752278224 | P185: -12.27135017 | Q185: -1.690415712 | R185: 0.09207721715 | S185: -0.758966552 | T185: -0.5009502242 | U185: 0.08139892135 | V185: -0.6135675086 | W185: -0.08452078559 | X185: 0.004603860858 | Y185: 0.08600278221 | AA185: -0.001662837601 | AB185: 0.001049717184 | AC185: 0.0002592376677 | AD185: -0.01638800065 | AE185: 0.0004590665493 | AF185: 3.360952163e-05
E186: 0.3660846189 | F186: -0.7476527154 | G186: -0.5035475347 | H186: 0.08010564807 | I186: -0.5741794203 | J186: -0.08618444831 | K186: 0.004394230258 | M186: -0.7136789753 | N186: -0.4785726535 | O186: 0.07654003914 | P186: -11.80846807 | Q186: -1.715178878 | R186: 0.08857498715 | S186: -0.7493629241 | T186: -0.5025012862 | U186: 0.0803670411 | V186: -0.5904234034 | W186: -0.08575894392 | X186: 0.004428749358 | Y186: 0.08479579046 | AA186: -0.001710208725 | AB186: 0.001046248509 | AC186: 0.0002613930238 | AD186: -0.01624398302 | AE186: 0.0004255043897 | AF186: 3.451910001e-05
E187: 0.3681412741 | F187: -0.7379722003 | G187: -0.5050752488 | H187: 0.07906845004 | I187: -0.5508619996 | J187: -0.08734141272 | K187: 0.00421578061 | M187: -0.7045041178 | N187: -0.4800310151 | O187: 0.07555427732 | P187: -11.33856509 | Q187: -1.738982792 | R187: 0.08502281181 | S187: -0.7397293237 | T187: -0.5040325659 | U187: 0.07933199118 | V187: -0.5669282546 | W187: -0.0869491396 | X187: 0.004251140591 | Y187: 0.08358313177 | AA187: -0.001757123414 | AB187: 0.001042682878 | AC187: 0.0002635411461 | AD187: -0.01606625497 | AE187: 0.0003922731246 | AF187: 3.5359981e-05
E188: 0.3701979293 | F188: -0.7282625514 | G188: -0.5065830234 | H188: 0.07802813051 | I188: -0.5272401327 | J188: -0.08845010595 | K188: 0.004035001016 | M188: -0.695301084 | N188: -0.4814704782 | O188: 0.07456553557 | P188: -10.86190381 | Q188: -1.761813282 | R188: 0.08142267864 | S188: -0.7300661382 | T188: -0.5055440021 | U188: 0.07829381234 | V188: -0.5430951904 | W188: -0.0880906641 | X188: 0.004071133932 | Y188: 0.08236494628 | AA188: -0.001803586751 | AB188: 0.001039021224 | AC188: 0.0002656818362 | AD188: -0.01585505761 | AE188: 0.00035944185 | AF188: 3.613291626e-05
E189: 0.3722545844 | F189: -0.7185241519 | G189: -0.5080707989 | H189: 0.07698473056 | I189: -0.5033268748 | J189: -0.08950991524 | K189: 0.003851991389 | M189: -0.6860702426 | N189: -0.4828909852 | O189: 0.07357385282 | P189: -10.3787517 | Q189: -1.783656723 | R189: 0.07777660375 | S189: -0.7203737548 | T189: -0.5070355345 | U189: 0.07725254546 | V189: -0.5189375851 | W189: -0.08918283615 | X189: 0.003888830188 | Y189: 0.08114137565 | AA189: -0.001849602813 | AB189: 0.001035264472 | AC189: 0.0002678148976 | AD189: -0.01561071034 | AE189: 0.0003270790859 | AF189: 3.683879902e-05
E190: 0.3743112396 | F190: -0.7087573864 | G190: -0.5095385167 | H190: 0.0759382914 | I190: -0.4791354419 | J190: -0.09052025487 | K190: 0.003666852872 | M190: -0.6768119629 | N190: -0.4842924792 | O190: 0.07257926813 | P190: -9.889381047 | Q190: -1.804500045 | R190: 0.07408663069 | S190: -0.710652561 | T190: -0.5085071032 | U190: 0.07620823153 | V190: -0.4944690523 | W190: -0.09022500225 | X190: 0.003704331535 | Y190: 0.07991256307 | AA190: -0.001895174654 | AB190: 0.001031413538 | AC190: 0.0002699401357 | AD190: -0.01533361038 | AE190: 0.000295252615 | AF190: 3.747866267e-05
E191: 0.3763678947 | F191: -0.6989626403 | G191: -0.5109861188 | H191: 0.07488885431 | I191: -0.4546792042 | J191: -0.09148056646 | K191: 0.003479687787 | M191: -0.6675266139 | N191: -0.4856749043 | O191: 0.07158182064 | P191: -9.394068726 | Q191: -1.824330743 | R191: 0.07035482932 | S191: -0.7009029446 | T191: -0.5099586495 | U191: 0.07516091167 | V191: -0.4697034363 | W191: -0.09121653713 | X191: 0.003517741466 | Y191: 0.07867865314 | AA191: -0.001940304298 | AB191: 0.001027469334 | AC191: 0.0002720573577 | AD191: -0.01502423215 | AE191: 0.0002640293234 | AF191: 3.805367915e-05
E192: 0.3784245499 | F192: -0.6891403003 | G192: -0.5124135481 | H192: 0.07383646075 | I192: -0.4299716778 | J192: -0.09239031926 | K192: 0.003290599575 | M192: -0.6582145648 | N192: -0.487038205 | O192: 0.07058154964 | P192: -8.89309608 | Q192: -1.843136884 | R192: 0.06658329463 | S192: -0.691125293 | T192: -0.5113901153 | U192: 0.07411062712 | V192: -0.444654804 | W192: -0.09215684422 | X192: 0.003329164732 | Y192: 0.07743979185 | AA192: -0.001984992727 | AB192: 0.001023432767 | AC192: 0.0002741663727 | AD192: -0.01468312623 | AE192: 0.0002334750434 | AF192: 3.856515687e-05
E193: 0.3804812051 | F193: -0.6792907543 | G193: -0.5138207481 | H193: 0.07278115224 | I193: -0.4050265179 | J193: -0.09324901049 | K193: 0.003099692739 | M193: -0.6488761849 | N193: -0.488382327 | O193: 0.06957849451 | P193: -8.386748722 | Q193: -1.860907122 | R193: 0.06277414555 | S193: -0.6813199942 | T193: -0.5128014433 | U193: 0.07305741924 | V193: -0.4193374361 | W193: -0.09304535609 | X193: 0.003138707277 | Y193: 0.07619612651 | AA193: -0.002029239887 | AB193: 0.001019304745 | AC193: 0.0002762669916 | AD193: -0.01431091824 | AE193: 0.0002036543972 | AF193: 3.901453843e-05
E194: 0.3825378602 | F194: -0.669414391 | G194: -0.5152076633 | H194: 0.07172297047 | I194: -0.379857511 | J194: -0.09405616556 | K194: 0.002907072788 | M194: -0.6395118435 | N194: -0.4897072163 | O194: 0.06857269475 | P194: -7.875316366 | Q194: -1.877630698 | R194: 0.05892952373 | S194: -0.6714874357 | T194: -0.5141925772 | U194: 0.07200132949 | V194: -0.3937658183 | W194: -0.09388153491 | X194: 0.002946476186 | Y194: 0.07494780568 | AA194: -0.002073044692 | AB194: 0.001015086177 | AC194: 0.0002783590273 | AD194: -0.0139083073 | AE194: 0.0001746306446 | AF194: 3.940339796e-05
E195: 0.3845945154 | F195: -0.6595116004 | G195: -0.5165742391 | H195: 0.07066195719 | I195: -0.3544785674 | J195: -0.09481133838 | K195: 0.002712846179 | M195: -0.6301219099 | N195: -0.4910128201 | O195: 0.06756418998 | P195: -7.359092635 | Q195: -1.893297457 | R195: 0.05505159235 | S195: -0.6616280054 | T195: -0.5155634611 | U195: 0.07094239948 | V195: -0.3679546318 | W195: -0.09466487285 | X195: 0.002752579617 | Y195: 0.0736949791 | AA195: -0.002116405036 | AB195: 0.001010777974 | AC195: 0.0002804422946 | AD195: -0.01347606434 | AE195: 0.0001464655333 | AF195: 3.973343816e-05
E196: 0.3866511706 | F196: -0.6495827734 | G196: -0.5179204214 | H196: 0.06959815429 | I196: -0.3289037133 | J196: -0.0955141116 | K196: 0.002517120255 | M196: -0.6207067535 | N196: -0.492299086 | O196: 0.06655301991 | P196: -6.838374869 | Q196: -1.907897849 | R196: 0.05114253483 | S196: -0.6517420912 | T196: -0.5169140403 | U196: 0.0698806709 | V196: -0.3419187435 | W196: -0.09539489245 | X196: 0.002557126742 | Y196: 0.07243779765 | AA196: -0.002159317808 | AB196: 0.001006381053 | AC196: 0.00028251661 | AD196: -0.01301503018 | AE196: 0.0001192191533 | AF196: 4.000648705e-05
E197: 0.3887078257 | F197: -0.639628302 | G197: -0.519246157 | H197: 0.06853160379 | I197: -0.3031470831 | J197: -0.0961640968 | K197: 0.002320003187 | M197: -0.6112667437 | N197: -0.4935659626 | O197: 0.06553922436 | P197: -6.313463928 | Q197: -1.92142294 | R197: 0.04720455363 | S197: -0.6418300809 | T197: -0.5182442607 | U197: 0.06881618558 | V197: -0.3156731964 | W197: -0.09607114701 | X197: 0.002360227682 | Y197: 0.07117641326 | AA197: -0.002201778916 | AB197: 0.001001896339 | AC197: 0.000284581792 | AD197: -0.01252611326 | AE197: 9.29497955e-05 | AF197: 4.022449442e-05
E198: 0.3907644809 | F198: -0.6296485792 | G198: -0.5205513938 | H198: 0.06746234777 | I198: -0.277222912 | J198: -0.09676093477 | K198: 0.002121603918 | M198: -0.60180225 | N198: -0.494813399 | O198: 0.06452284327 | P198: -5.784663985 | Q198: -1.933864419 | R198: 0.04323986892 | S198: -0.6318923625 | T198: -0.519554069 | U198: 0.06774898543 | V198: -0.2892331993 | W198: -0.09669322095 | X198: 0.002161993446 | Y198: 0.06991097888 | AA198: -0.002243783309 | AB198: 0.0009973247665 | AC198: 0.0002866376611 | AD198: -0.01201028729 | AE198: 6.77138147e-05 | AF198: 4.038952794e-05
E199: 0.392821136 | F199: -0.6196439989 | G199: -0.52183608 | H199: 0.06639042845 | I199: -0.2511455274 | J199: -0.09730429563 | K199: 0.001922032097 | M199: -0.5923136418 | N199: -0.4960413454 | O199: 0.06350391666 | P199: -5.252282318 | Q199: -1.945214603 | R199: 0.03925071733 | S199: -0.6219293239 | T199: -0.5208434127 | U199: 0.06667911249 | V199: -0.2626141159 | W199: -0.09726073013 | X199: 0.001962535866 | Y199: 0.06864164836 | AA199: -0.002285325017 | AB199: 0.0009926672796 | AC199: 0.0002886840394 | AD199: -0.01146858853 | AE199: 4.356549843e-05 | AF199: 4.050376911e-05
E200: 0.3948777912 | F200: =-$C$27*$C$26^2*COS($C$26*$E200+$C$28) -> -0.6096149561 | G200: =-$C$27*$C$26*SIN($C$26*$E200+$C$28) -> -0.523100165 | H200: =$C$27*COS($C$26*$E200+$C$28) -> 0.06531588816 | I200: -0.2249293416 | J200: -0.0977938791 | K200: 0.001721398022 | M200: -0.5828012889 | N200: -0.4972497526 | O200: 0.06248248467 | P200: -4.716629092 | Q200: -1.955466443 | R200: 0.03523935062 | S200: -0.6119413533 | T200: -0.5221122402 | U200: 0.06560660891 | V200: -0.2358314546 | W200: -0.09777332216 | X200: 0.001761967531 | Y200: 0.06736857644 | AA200: -0.002326397178 | AB200: 0.0009879248374 | AC200: 0.0002907207514 | AD200: -0.01090211302 | AE200: 2.055694098e-05 | AF200: 4.056950883e-05
... 808 more rows

Sheet お問合せ
B2: 技術的なご質問のみお受けします。
C4: sxsijk@Gmail.com | D4: sxsijk@Gmail.com
E120: =C120-C$21 -> 0
E121: =IF(C121<0,C121+360,C121)-IF(C$22<0,C$22+360,C$22) -> 0
E122: =C122-C$23 -> 0
E124: =C124-C$17 -> 0
E125: =C125-C$18 -> 0
E126: =C126-C$19 -> 0
E127: =C127-C$20 -> 0
E128: =C128-C$21 -> 0
E129: =IF(C129<0,C129+360,C129)-IF(C$22<0,C$22+360,C$22) -> 0
E130: =C130-C$23 -> 0
E131: =C131-C$24 -> 0
E132: =C132-C$25 -> 0
E133: =C133-C$26 -> 0
E134: =C134-C$27 -> 0
C137: 35 | E137: =C137-C$17 -> 35
B138: λp | E138: =C138-C$18 -> 0
E139: =C139-C$19 -> 0
C140: =SQRT(((#REF!^2*COS(RADIANS(C137)))^2+(#REF!^2*SIN(RADIANS(C137)))^2)/(#REF!^2*(1-C$4*SIN(RADIANS(C137))^2))) ->  | E140: =C140-C$20 -> 
C141: =DEGREES(C143/C140) ->  | E141: =C141-C$25 -> 
E142: =C142-C$26 -> 0
E143: =C143-C$27 -> 0
E144: =IF(C144<0,C144+360,C144)-IF(C$22<0,C$22+360,C$22) -> 0
E145: =C145-C$23 -> 0
C146: =DEGREES(ATAN2((1-C$4)*COS(RADIANS(C145)),SIN(RADIANS(C145)))) ->  | E146: =C146-C$21 -> 
C147: =SQRT(((#REF!^2*COS(RADIANS(C146)))^2+(#REF!^2*SIN(RADIANS(C146)))^2)/(#REF!^2*(1-C$4*SIN(RADIANS(C146))^2))) ->  | E147: =C147-C$24 -> 
C148: =DEGREES(ACOS(COS(RADIANS(C$139))*COS(RADIANS(C145))*(COS(RADIANS(C$138))*COS(RADIANS(C144))+SIN(RADIANS(C$138))*SIN(RADIANS(C144)))+SIN(RADIANS(C$139))*SIN(RADIANS(C145)))) -> 0 | E148: =C148-C$25 -> 0
C149: =DEGREES(ATAN2(COS(RADIANS(C$139))*SIN(RADIANS(C145))-SIN(RADIANS(C$139))*COS(RADIANS(C145))*COS(RADIANS(C144-C$138)),COS(RADIANS(C145))*SIN(RADIANS(C144-C$138)))) ->  | E149: =C149-C$26 -> 
C150: =SQRT(((C$140-C147)*COS(RADIANS(C148/2)))^2+(MAX(C$140,C147)*RADIANS(C148)-ABS(C$140-C147)*SIN(RADIANS(C148/2)))^2) ->  | E150: =C150-C$27 -> 
A151: 補正 | B151: θ＝θ+(d0-d)/r | C151: =C141+DEGREES((C143-C150)/C147) ->  | E151: =C151-C$25 -> 
C152: =C142 -> 0 | E152: =C152-C$26 -> 0
C153: =C143 -> 0 | E153: =C153-C$27 -> 0
E154: =IF(C154<0,C154+360,C154)-IF(C$22<0,C$22+360,C$22) -> 0
E155: =C155-C$23 -> 0
C156: =DEGREES(ATAN2((1-C$4)*COS(RADIANS(C155)),SIN(RADIANS(C155)))) ->  | E156: =C156-C$21 -> 
C157: =SQRT(((#REF!^2*COS(RADIANS(C156)))^2+(#REF!^2*SIN(RADIANS(C156)))^2)/(#REF!^2*(1-C$4*SIN(RADIANS(C156))^2))) ->  | E157: =C157-C$24 -> 
C158: =DEGREES(ACOS(COS(RADIANS(C$139))*COS(RADIANS(C155))*(COS(RADIANS(C$138))*COS(RADIANS(C154))+SIN(RADIANS(C$138))*SIN(RADIANS(C154)))+SIN(RADIANS(C$139))*SIN(RADIANS(C155)))) -> 0 | E158: =C158-C$25 -> 0
C159: =DEGREES(ATAN2(COS(RADIANS(C$139))*SIN(RADIANS(C155))-SIN(RADIANS(C$139))*COS(RADIANS(C155))*COS(RADIANS(C154-C$138)),COS(RADIANS(C155))*SIN(RADIANS(C154-C$138)))) ->  | E159: =C159-C$26 -> 
C160: =SQRT(((C$140-C157)*COS(RADIANS(C158/2)))^2+(MAX(C$140,C157)*RADIANS(C158)-ABS(C$140-C157)*SIN(RADIANS(C158/2)))^2) ->  | E160: =C160-C$27 -> 
